{"text_format":"3","workbook":"xlsx","n_sheets":12,"sheets":["Portada","Usuarios","Abogados","Registro Casos","Judiciales","Arbitramentos","Comité de conciliación","Pagos","Resumen","Información a consolidar","Administrador","Entidades"],"not_rendered":{"images":5,"external_links":1,"defined_names":1},"read":"whole","date_system":"1900"}

{"sheet":"Portada","index":0,"n_rows":22,"n_cols":35,"rows_kept":22,"merged":[[1,4,2,21],[5,1,5,2],[5,4,5,7],[5,8,5,9],[6,1,6,2],[7,1,7,2],[8,1,8,2],[8,4,10,21],[9,1,9,2],[10,1,10,2],[11,1,11,2],[12,1,12,2],[13,1,13,2],[13,6,18,7],[13,11,18,12],[13,13,18,14],[13,18,18,19],[13,20,18,21],[14,1,14,2],[15,1,15,2],[16,1,16,2],[17,1,17,2],[18,1,18,2],[19,1,19,2],[20,1,20,2],[21,1,21,2],[21,4,23,18],[21,19,22,21],[23,19,23,21]]}
[]
[{"$nulls":4},"Plantilla del Certificado de Control Interno ekOGUI"]
[]
[{"$nulls":34},"I - 2025"]
[{"$nulls":34},"II - 2025"]
[null,"Portada",null,null,"Periodo a diligenciar",{"$nulls":3},"I - 2025",{"$nulls":25},"I - 2026"]
[{"$nulls":34},"II - 2026"]
[null,"Usuarios"]
[{"$nulls":4},"Por favor seleccione la información que desea registrar, en cualquier momento puede visualizar los resultados de la información que haya registrado seleccionando la opción de Resumen (certificación a presentar)."]
[null,"Abogados"]
[]
[null,"Registro Casos"]
[{"$nulls":4}," "]
[null,"Judiciales",{"$nulls":4},"Utilice la barra de navegación lateral izquierda para moverse entre pestañas",{"$nulls":6},"Utilice las listas desplegables para llenar información a lo largo del documento",{"$nulls":6},"Utilice la información del lateral derecho como ayuda de llenado de la pestaña"]
[]
[null,"Arbitramentos"]
[]
[null,"Comité de Conciliación"]
[]
[null,"Pagos"]
[]
[null,"Resumen (Certificación a presentar)",null,null,"Para saber más sobre el contenido y cómo completar la plantilla de control interno puede consultar la Guía de Control Interno.",{"$nulls":14},"Acceder a la guía"]

{"sheet":"Usuarios","index":1,"n_rows":24,"n_cols":20,"rows_kept":24,"merged":[[1,4,2,21],[4,4,5,16],[4,19,10,21],[5,1,5,2],[6,1,6,2],[7,1,7,2],[7,4,8,6],[7,7,8,9],[7,10,8,13],[7,14,8,16],[8,1,8,2],[9,1,9,2],[10,1,10,2],[10,4,11,6],[10,7,11,9],[10,10,11,13],[10,14,11,16],[11,1,11,2],[11,19,12,21],[12,1,12,2],[12,4,13,6],[12,7,13,9],[12,10,13,13],[12,14,13,16],[13,1,13,2],[13,19,13,21],[14,1,14,2],[14,4,15,6],[14,7,15,9],[14,10,15,13],[14,14,15,16],[15,1,15,2],[15,19,32,21],[16,1,16,2],[16,4,17,6],[16,7,17,9],[16,10,17,13],[16,14,17,16],[17,1,17,2],[18,1,18,2],[18,4,19,6],[18,7,19,9],[18,10,19,13],[18,14,19,16],[19,1,19,2],[20,1,20,2],[21,1,21,2],[21,4,22,16],[23,4,32,16]]}
[]
[{"$nulls":4},"Usuarios"]
[]
[]
[{"$nulls":4},"En esta sección se presenta la información detallada de los usuarios activos en el sistema.",{"$nulls":14},"Para saber más sobre cómo completar la hoja de usuarios puede consultar la sección (Hoja de usuarios) de la Guía de Control Interno."]
[null,"Portada"]
[]
[null,"Usuarios",null,null,"Rol",null,null,"Fecha creación en ekOGUI (DD/MM/AAAA)",null,null,"Nombres y Apellidos",{"$nulls":3},"Fecha última capacitación (DD/MM/AAAA)"]
[]
[null,"Abogados"]
[{"$nulls":4},"Jefe Financiero",null,null,"2021-03-18",null,null,"Tayro Alberto Pimienta Deluque",{"$nulls":3},"2025-01-22"]
[null,"Registro Casos",{"$nulls":15},{"$f":"IFERROR(LOOKUP(O11,Administrador!$H$9:$H$11,Administrador!$I$9:$I$11),0)","v":2},{"$f":"IF(R12=0,1,\"\")","v":""},"Acceder a la guía"]
[{"$nulls":4},"Jefe Jurídico",null,null,"2023-06-07",null,null,"Paola Fontalvo Lopez",{"$nulls":3},"2025-01-22"]
[null,"Judiciales",{"$nulls":15},{"$f":"IFERROR(LOOKUP(O13,Administrador!$H$9:$H$11,Administrador!$I$9:$I$11),0)","v":2},{"$f":"IF(R14=0,1,\"\")","v":""}]
[{"$nulls":4},"Jefe de Control Interno",null,null,"2015-04-03",null,null,"Jose Antonio Cardozo Alvarez",{"$nulls":3},"2025-01-22"]
[null,"Arbitramentos",{"$nulls":15},{"$f":"IFERROR(LOOKUP(O15,Administrador!$H$9:$H$11,Administrador!$I$9:$I$11),0)","v":2},{"$f":"IF(R16=0,1,\"\")","v":""},"❓ En el campo de la fecha de creación en ekOGUI, si la creación del usuario fue antes de la vigencia 2015, por favor registrar la fecha 01-01-2015.\n\n\n! El periodo de capacitación a reportar es del 01 de enero de 2024 al 30 de junio de 2025 (si el periodo de capacitación es anterior o superior al mencionado, NO diligencie este campo por favor). \n\n! Si la Entidad no cuenta con el perfil, por favor especificar en la casilla de Nombres y Apellidos NO APLICA"]
[{"$nulls":4},"Secretario Técnico",null,null,"2024-04-05",null,null,"Jorge Paez Barros",{"$nulls":3},"2025-01-22"]
[null,"Comité de Conciliación",{"$nulls":15},{"$f":"IFERROR(LOOKUP(O17,Administrador!$H$9:$H$11,Administrador!$I$9:$I$11),0)","v":2},{"$f":"IF(R18=0,1,\"\")","v":""}]
[{"$nulls":4},"Administrador de la Entidad",null,null,"2024-12-11",null,null,"María Luisa Mercado Cepeda",{"$nulls":3},"2025-01-22"]
[null,"Pagos",{"$nulls":15},{"$f":"IFERROR(LOOKUP(O19,Administrador!$H$9:$H$11,Administrador!$I$9:$I$11),0)","v":2},{"$f":"IF(R20=0,1,\"\")","v":""}]
[]
[null,"Resumen (Certificación a presentar)",null,null,"Observaciones"]
[]
[{"$nulls":4},"No hay observaciones."]

{"sheet":"Abogados","index":2,"n_rows":27,"n_cols":19,"rows_kept":27,"merged":[[1,4,2,21],[4,4,5,16],[4,18,10,20],[5,1,5,2],[6,1,6,2],[7,1,7,2],[8,1,8,2],[8,6,10,7],[8,9,10,10],[8,12,10,13],[8,15,10,16],[9,1,9,2],[10,1,10,2],[11,1,11,2],[11,6,13,7],[11,9,13,10],[11,12,13,13],[11,15,13,16],[11,18,12,21],[12,1,12,2],[13,1,13,2],[13,18,13,21],[14,1,14,2],[15,1,15,2],[15,18,32,21],[16,1,16,2],[16,4,17,9],[16,11,17,16],[17,1,17,2],[18,1,18,2],[18,4,19,7],[18,8,19,9],[18,11,19,14],[18,15,19,16],[19,1,19,2],[20,1,20,2],[20,4,21,7],[20,8,21,9],[20,11,21,14],[20,15,21,16],[21,1,21,2],[22,4,23,7],[22,8,23,9],[22,11,23,14],[22,15,23,16],[25,4,25,16],[26,4,32,16]]}
[]
[{"$nulls":4},"Abogados"]
[]
[]
[{"$nulls":4},"En esta sección se presenta la información detallada de los abogados.",{"$nulls":13},"Para saber más sobre cómo completar la hoja de abogados puede consultar la sección (Hoja de abogados) de la Guía de Control Interno."]
[null,"Portada"]
[]
[null,"Usuarios"]
[{"$nulls":6},8,null,null,8,null,null,1,null,null,1]
[null,"Abogados"]
[]
[null,"Registro Casos",{"$nulls":4},"Cantidad de abogados litigando según jurídica al 30 de junio de 2025",null,null,"Abogados activos en ekOGUI al 30 de junio de 2025",null,null,"Retirados de la entidad según jurídica durante el primer semestre de 2025",null,null,"Inactivados en ekOGUI durante el primer semestre de 2025",null,null,"Acceder a la guía"]
[]
[null,"Judiciales"]
[{"$nulls":7},{"$f":"+J9*25%","v":2},{"$f":"+INT(IF(J9<10,J9,IF(H15<10,10,H15)))","v":8}]
[null,"Arbitramentos",{"$nulls":16},"❓Es importante que cada entidad actualice los accesos de los abogados vigentes, para evitar que aquellos que ya no están activos utilicen indebidamente sus perfiles registrados en ekOGUI, y así prevenir posibles fugas de información.\n\n!  Recuerde que la suma de los abogados en la tabla de capacitaciones debe corresponder al número de abogados activos en ekOGUI y contar con el debido soporte (acta y/o certificación)\n\n❓En algunas entidades, el área jurídica se reparte entre abogados y apoderados y sólo algunos están registrados en ekOGUI, por lo que es necesario diferenciar entre 'Cantidad de Abogados Litigando según Jurídica' y 'Abogados Creados en ekOGUI Activos'. "]
[{"$nulls":4},{"$f":"\"Seleccione una muestra de \"&I15&\" abogados activos y complete los siguientes datos:\"","v":"Seleccione una muestra de 8 abogados activos y complete los siguientes datos:"},{"$nulls":6},"De los abogados activos creados en eKOGUI indique cuántos tienen su última capácitación:"]
[null,"Comité de Conciliación"]
[{"$nulls":4},{"$f":"\"De la muestra de \"&I15&\", cuantos tienen el nombre correcto\"","v":"De la muestra de 8, cuantos tienen el nombre correcto"},{"$nulls":3},8,null,null,"Su última capacitación fue realizada después del 01-01-2024 hasta el 30-06-2025",{"$nulls":3},5]
[null,"Pagos",{"$nulls":15},{"$f":"+P19*1","v":5}]
[{"$nulls":4},{"$f":"\"De la muestra de \"&I15&\", cuantos tienen el correo electrónico correcto\"","v":"De la muestra de 8, cuantos tienen el correo electrónico correcto"},{"$nulls":3},8,null,null,"Su última capacitación fue anterior al 31-12-2023",{"$nulls":3},0]
[null,"Resumen (Certificación a presentar)",{"$nulls":15},{"$f":"+P21*1","v":0}]
[{"$nulls":4},{"$f":"\"De la muestra de \"&I15&\", cuantos tienen tipo de vinculación de planta\"","v":"De la muestra de 8, cuantos tienen tipo de vinculación de planta"},{"$nulls":3},1,null,null,"No tienen capacitación",{"$nulls":3},3]
[{"$nulls":17},{"$f":"IFERROR(LOOKUP(O25,[1]Administrador!$L$9:$L$11,[1]Administrador!$M$9:$M$11),0)","v":0}]
[]
[{"$nulls":4},"Observaciones"]
[{"$nulls":4},"No hay observaciones."]

{"sheet":"Registro Casos","index":3,"n_rows":23,"n_cols":20,"rows_kept":23,"merged":[[1,4,2,21],[3,4,3,21],[5,1,5,2],[5,4,6,17],[5,19,12,21],[6,1,6,2],[7,1,7,2],[8,1,8,2],[9,1,9,2],[9,6,10,14],[9,15,10,15],[10,1,10,2],[11,1,11,2],[12,1,12,2],[12,6,13,14],[12,15,13,15],[13,1,13,2],[13,19,14,21],[14,1,14,2],[15,1,15,2],[15,6,16,14],[15,15,16,15],[16,1,16,2],[17,1,17,2],[17,19,25,21],[18,1,18,2],[18,6,19,14],[18,15,19,15],[19,1,19,2],[20,1,20,2],[21,1,21,2],[21,4,21,17],[22,4,25,17]]}
[]
[{"$nulls":4},"Registro Casos en ekOGUI"]
[]
[]
[]
[null,"Portada",null,null,"En esta sección se presenta la información detallada de los casos recibidos y registrados en ekOGUI. ",{"$nulls":14},"Para saber más sobre cómo completar la hoja de Registro Casos en ekOGUI puede consultar la sección (Hoja Registro Casos) de la Guía de Control Interno"]
[]
[null,"Usuarios"]
[]
[null,"Abogados",{"$nulls":4},{"$f":"\"Cuántos autos admisorios de procesos judiciales fueron notificados por el buzón notificaciones judiciales a la Entidad durante el semestre \"&Portada!I6","v":"Cuántos autos admisorios de procesos judiciales fueron notificados por el buzón notificaciones judiciales a la Entidad durante el semestre I - 2025"},{"$nulls":8},2]
[]
[null,"Registro Casos"]
[{"$nulls":6},"De acuerdo con la pregunta anterior, cuántos de los autos admisorios de procesos judiciales notificados fueron registrados en el sistema ekOGUI durante el semestre I - 2025",{"$nulls":8},2]
[null,"Judiciales",{"$nulls":17},"Acceder a la guía"]
[]
[null,"Arbitramentos",{"$nulls":4},"De acuerdo con la pregunta anterior, cuántos autos admisorios de procesos judiciales fueron registrados con oportunidad (10 días hábiles) en el sistema ekOGUI,  conforme a la normativa (No. 3 art. 2.2.3.4.1.10 DL 104 de 2025) en el semestre I - 2025",{"$nulls":8},1]
[]
[null,"Comité de Conciliación",{"$nulls":17},"! Para diligenciar la cantidad de autos admisorios notificados y registrados en ekOGUI con oportunidad, se tendrán en cuenta sólo los autos admisorios que desde la fecha de notificación y la fecha de registro no haya superado los 10 días hábiles.\n\n! Los 10 días hábiles de oportunidad de registro, se cuentan a partir de la fecha del recibido del correo electrónico de notificación."]
[{"$nulls":6},"! Total de autos admisorios de procesos judiciales que NO fueron registrados en el sistema ekOGUI con oportunidad (10 días hábiles) conforme a la normativa (No. 3 art. 2.2.3.4.1.10 DL 104 de 2025) en el semestre I - 2025",{"$nulls":8},{"$f":"+P13-P16","v":1}]
[null,"Pagos"]
[]
[null,"Resumen (Certificación a presentar)",null,null,"Observaciones"]
[{"$nulls":4},"Se informa que en el periodo auditado no ingresaron medios de control contencioso administrativos. "]

{"sheet":"Judiciales","index":4,"n_rows":45,"n_cols":23,"rows_kept":45,"merged":[[2,4,3,24],[5,1,5,2],[5,4,6,20],[5,22,12,24],[6,1,6,2],[7,1,7,2],[8,1,8,2],[9,1,9,2],[9,4,10,10],[9,11,10,11],[9,13,10,19],[9,20,10,20],[10,1,10,2],[11,1,11,2],[11,4,12,10],[11,11,12,11],[11,13,12,19],[11,20,12,20],[12,1,12,2],[13,1,13,2],[13,4,14,10],[13,11,14,11],[13,12,14,12],[13,13,14,19],[13,20,14,20],[13,22,14,24],[14,1,14,2],[15,1,15,2],[15,4,16,10],[15,11,16,11],[15,13,16,19],[15,20,16,20],[16,1,16,2],[17,1,17,2],[17,22,50,24],[18,1,18,2],[18,4,19,10],[18,11,19,11],[18,13,19,19],[18,20,19,20],[19,1,19,2],[20,1,20,2],[20,4,21,10],[20,11,21,11],[20,13,21,19],[20,20,21,20],[21,1,21,2],[21,12,22,12],[22,4,23,10],[22,11,23,11],[22,13,23,19],[22,20,23,20],[24,13,25,19],[24,20,25,20],[25,4,27,11],[26,13,27,19],[26,20,27,20],[28,19,28,20],[29,4,30,10],[29,11,30,11],[29,13,30,17],[29,18,30,18],[29,19,30,20],[31,4,32,10],[31,11,32,11],[31,13,32,17],[31,18,32,18],[31,19,32,20],[33,4,34,10],[33,11,34,11],[33,13,34,17],[33,18,34,18],[33,19,34,20],[35,4,36,10],[35,11,36,11],[35,13,36,17],[35,18,36,18],[35,19,36,20],[37,4,38,10],[37,11,38,11],[37,13,38,17],[37,18,38,18],[37,19,38,20],[39,4,40,10],[39,11,40,11],[43,4,43,20],[44,4,50,20]]}
[]
[]
[{"$nulls":4},"Judiciales"]
[]
[]
[null,"Portada",null,null,"En esta sección se presenta la información detallada de los procesos judiciales.",{"$nulls":17},"Para saber más sobre cómo completar la hoja de procesos judiciales puede consultar la sección (Hoja Judiciales) de la Guía de Control Interno"]
[]
[null,"Usuarios"]
[]
[null,"Abogados",null,null,{"$f":"\"Procesos activos al \"&Administrador!B5&\"DE \"&Administrador!B4","v":"Procesos activos al 30 DE JUNIO DE 2025"},{"$nulls":6},"Cantidad",null,"Mayores a 33.0000 SMMLV activos",{"$nulls":6},"Cantidad"]
[]
[null,"Registro Casos",null,null,"Cantidad de procesos activos según jurídica",{"$nulls":6},101,null,"Cantidad de procesos de más de 33.000 SMMLV según jurídica",{"$nulls":6},3]
[]
[null,"Judiciales",null,null,"Cantidad de procesos activos registrados en ekOGUI",{"$nulls":6},93,null,"Cantidad de procesos de más de 33.000 SMMLV registrados en ekOGUI",{"$nulls":6},3,null,"Acceder a la guía"]
[]
[null,"Arbitramentos",null,null,"Cantidad de procesos sin abogado asignado",{"$nulls":6},0,null,"Cantidad de procesos de más de 33.000 SMMLV con la pieza demanda",{"$nulls":6},3]
[]
[null,"Comité de Conciliación",{"$nulls":20},"! Para diligenciar la cantidad de procesos sin abogado asignado, la fecha de admisión debe ser antes del 30-06-2025.\n\n\n! Para diligenciar la cantidad de procesos terminados en ekOGUI durante el primer semestre de 2025, se tendrá en cuenta la fecha de actuación de terminación en este periodo.\n\n\n! El valor indexado que se tendrá en cuenta para la verificación de los procesos mayores a 33.000 SMMLV, será de $46.975.500.000 (vigencia 2025).\n\n\n! Para la Calificación del Riesgo - Provisión Contable, solo se considerarán los procesos activos en ekOGUI en calidad de demandado que tengan calificación de riesgo.\n\n\n! Del total del número de procesos en Calificación del Riesgo y Provisión Contable, se debe incluir cuántos tienen una provisión igual a 0 de cada probabilidad de perder el caso."]
[{"$nulls":4},{"$f":"+\"Procesos terminados durante el \"&Administrador!B3&\" semestre de \"&Administrador!B4","v":"Procesos terminados durante el PRIMER semestre de 2025"},{"$nulls":6},"Cantidad",null,"Calificación de riesgo",{"$nulls":6},"Cantidad"]
[null,"Pagos"]
[{"$nulls":4},{"$f":"\"Cantidad de procesos terminados durante el \"&Administrador!B3&\" semestre de \"&Administrador!B4&\" según jurídica\"","v":"Cantidad de procesos terminados durante el PRIMER semestre de 2025 según jurídica"},{"$nulls":6},75,null,{"$f":"\"Cantidad de procesos activos ekOGUI - Calidad demandado\"","v":"Cantidad de procesos activos ekOGUI - Calidad demandado"},{"$nulls":6},86]
[null,"Resumen (Certificación a presentar)"]
[{"$nulls":4},{"$f":"\"Cantidad de procesos terminados en ekOGUI durante el \"&Administrador!B3&\" semestre de \"&Administrador!B4","v":"Cantidad de procesos terminados en ekOGUI durante el PRIMER semestre de 2025"},{"$nulls":6},150,null,{"$f":"\"Cantidad de procesos en ekOGUI - Calificación durante el semestre \"&Administrador!B2","v":"Cantidad de procesos en ekOGUI - Calificación durante el semestre I - 2025"},{"$nulls":6},64]
[]
[{"$nulls":10},{"$f":"+L23*25%","v":37.5},{"$f":"+INT(IF(L23<10,L23,IF(K25<10,10,K25)))","v":37},null,{"$f":"\"Cantidad de procesos en ekOGUI - Calificación anterior al semestre \"&Administrador!B2","v":"Cantidad de procesos en ekOGUI - Calificación anterior al semestre I - 2025"},{"$nulls":6},10]
[{"$nulls":4},{"$f":"\"Seleccione \"&L25&\" procesos terminados en el primer semestre de \"&Administrador!A8&\" y diligencie la siguiente tabla:\"","v":"Seleccione 37 procesos terminados en el primer semestre de 2025 y diligencie la siguiente tabla:"}]
[{"$nulls":13},"Cantidad de procesos en ekOGUI - Sin calificación al semestre I - 2025",{"$nulls":6},12]
[]
[{"$nulls":19},{"$f":"IF(U23+U25+U27<>U21,\"Calificación inconsistente\",\"\")","v":""}]
[{"$nulls":4},"Condenas",{"$nulls":6},"Cantidad",null,"Calificación de riesgo - Provisión contable",{"$nulls":4},"Número Procesos","Número provisión igual a cero"]
[]
[{"$nulls":4},"Procesos analizados",{"$nulls":6},{"$f":"+L25","v":37},null,"Probabilidad de perder el caso - ALTA",{"$nulls":5},2]
[]
[{"$nulls":4},"Procesos terminados con ejecutoria",{"$nulls":6},37,null,"Probabilidad de perder el caso - MEDIA",{"$nulls":5},5]
[]
[{"$nulls":4},"Procesos desfavorables",{"$nulls":6},0,null,"Probabilidad de perder el caso - BAJA",{"$nulls":5},1,null,{"$f":"+S32-T32","v":-2}]
[]
[{"$nulls":4},"Procesos que generan erogación económica",{"$nulls":6},0,null,"Probabilidad de perder el caso - REMOTA",{"$nulls":5},66,null,{"$f":"+S34-T34","v":-5}]
[]
[{"$nulls":4},"Procesos con valor condena mayor a cero",{"$nulls":6},0,{"$nulls":9},{"$f":"+S36-T36","v":-1}]
[]
[{"$nulls":21},{"$f":"+S38-T38","v":-66}]
[]
[{"$nulls":4},"Observaciones"]
[{"$nulls":4},"No hay observaciones."]

{"sheet":"Arbitramentos","index":5,"n_rows":22,"n_cols":23,"rows_kept":22,"merged":[[1,4,2,24],[4,4,5,20],[4,22,10,24],[5,1,5,2],[6,1,6,2],[7,1,7,2],[8,1,8,2],[8,4,9,10],[8,11,9,11],[8,13,9,19],[8,20,9,20],[9,1,9,2],[10,1,10,2],[10,4,11,10],[10,11,11,11],[10,13,11,19],[10,20,11,20],[11,1,11,2],[11,22,12,24],[12,1,12,2],[12,4,13,10],[12,11,13,11],[12,13,13,19],[12,20,13,20],[13,1,13,2],[14,1,14,2],[15,1,15,2],[16,1,16,2],[16,4,16,20],[17,1,17,2],[17,4,20,20],[18,1,18,2],[19,1,19,2],[20,1,20,2],[21,1,21,2]]}
[]
[{"$nulls":4},"Arbitramentos"]
[]
[]
[{"$nulls":4},"En esta sección se presenta la información detallada de los procesos de arbitramentos.",{"$nulls":17},"Para saber más sobre cómo completar la hoja de arbitramentos puede consultar la sección (Hoja de Arbitramentos) de la Guía de Control Interno."]
[null,"Portada"]
[]
[null,"Usuarios"]
[{"$nulls":4},"Arbitramentos",{"$nulls":6},"Cantidad",null,"Arbitramentos",{"$nulls":6},"Cantidad"]
[null,"Abogados"]
[{"$nulls":4},{"$f":"\"Total de arbitramentos activos al \"&Administrador!B5&\"de \"&Administrador!B4&\" según jurídica\"","v":"Total de arbitramentos activos al 30 DE JUNIO de 2025 según jurídica"},{"$nulls":6},0,null,{"$f":"\"Total arbitramentos terminados al \"&Administrador!B5&\"de \"&Administrador!B4&\" según jurídica\"","v":"Total arbitramentos terminados al 30 DE JUNIO de 2025 según jurídica"},{"$nulls":6},0]
[null,"Registro Casos",{"$nulls":20},"Acceder a la guía"]
[{"$nulls":4},"Total de arbitramentos activos registrados en ekOGUI al 30 de junio de 2025",{"$nulls":6},0,null,"Total de arbitramentos terminados en ekOGUI al 30 de junio de 2025",{"$nulls":6},0]
[null,"Judiciales"]
[]
[null,"Arbitramentos"]
[{"$nulls":4},"Observaciones"]
[null,"Comité de Conciliación",null,null,"No hay observaciones."]
[]
[null,"Pagos"]
[]
[null,"Resumen (Certificación a presentar)"]

{"sheet":"Comité de conciliación","index":6,"n_rows":25,"n_cols":20,"rows_kept":25,"merged":[[0,4,2,21],[4,4,5,17],[4,19,11,21],[5,1,5,2],[6,1,6,2],[7,1,7,2],[7,4,8,16],[7,17,8,17],[8,1,8,2],[9,1,9,2],[9,4,10,16],[9,17,10,17],[10,1,10,2],[11,1,11,2],[12,1,12,2],[12,4,12,14],[12,19,13,21],[13,1,13,2],[13,4,13,8],[13,9,13,10],[13,11,13,12],[13,13,13,14],[14,1,14,2],[14,4,14,8],[14,9,14,10],[14,11,14,12],[14,13,14,14],[15,1,15,2],[15,4,15,8],[15,9,15,10],[15,11,15,12],[15,13,15,14],[16,1,16,2],[16,4,16,8],[16,9,16,10],[16,11,16,12],[16,13,16,14],[17,1,17,2],[18,1,18,2],[18,4,18,8],[18,9,18,10],[19,1,19,2],[19,4,19,8],[19,9,19,10],[20,1,20,2],[20,4,20,8],[20,9,20,10],[21,1,21,2],[21,4,21,8],[21,9,21,10],[23,4,23,17],[24,4,29,17]]}
[{"$nulls":4},"Comité de Conciliación"]
[]
[]
[]
[{"$nulls":4},"En esta sección se presenta la información detallada de los comités de conciliación.",{"$nulls":14},"Para saber más sobre cómo completar la hoja de Comités de Conciliación puede consultar la sección (Hoja Comités de Conciliación) de la Guía de Control Interno"]
[null,"Portada"]
[]
[null,"Usuarios",null,null,{"$f":"\"Su entidad gestionó sesiones del comité de conciliación a través del sistema eKOGUI durante el semestre \"&Portada!I6","v":"Su entidad gestionó sesiones del comité de conciliación a través del sistema eKOGUI durante el semestre I - 2025"},{"$nulls":12},"NO"]
[]
[null,"Abogados",null,null,"Su entidad elaboró las fichas de conciliación a través del sistema eKOGUI durante el semestre I - 2025",{"$nulls":12},"NO"]
[]
[null,"Registro Casos"]
[{"$nulls":4},"Fichas para decisión del comité",{"$nulls":14},"Acceder a la guía"]
[null,"Judiciales",{"$nulls":7},"Con fecha",null,"Sin fecha",null,"Total"]
[{"$nulls":4},"Cantidad de procesos  arbitrales para decisión del comité",{"$nulls":4},0,{"$nulls":3},{"$f":"+J15+L15","v":0}]
[null,"Arbitramentos",null,null,"Cantidad de procesos  judiciales para decisión del comité",{"$nulls":4},0,{"$nulls":3},{"$f":"+J16+L16","v":0}]
[{"$nulls":4},"Cantidad de conciliaciones extrajudciales para decisión del comité",{"$nulls":4},1,{"$nulls":3},{"$f":"+J17+L17","v":1}]
[null,"Comité de Conciliación"]
[{"$nulls":4},"Fichas con decisión del comité",{"$nulls":4},"Cantidad"]
[null,"Pagos",null,null,"Procesos  arbitrales con decisión del comité",{"$nulls":4},0]
[{"$nulls":4},"Procesos  judiciales con decisión del comité",{"$nulls":4},0]
[null,"Resumen (Certificación a presentar)",null,null,"Conciliaciones extrajudciales con decisión del comité",{"$nulls":4},1]
[]
[{"$nulls":4},"Observaciones"]
[{"$nulls":4},"No hay observaciones."]

{"sheet":"Pagos","index":7,"n_rows":22,"n_cols":21,"rows_kept":22,"merged":[[1,4,2,22],[4,4,5,18],[4,20,11,22],[5,1,5,2],[6,1,6,2],[7,1,7,2],[8,1,8,2],[8,4,9,16],[8,17,9,18],[9,1,9,2],[10,1,10,2],[10,4,11,16],[10,17,11,18],[11,1,11,2],[12,1,12,2],[12,20,13,22],[13,1,13,2],[14,1,14,2],[15,1,15,2],[15,4,15,18],[16,1,16,2],[16,4,20,18],[17,1,17,2],[18,1,18,2],[19,1,19,2],[20,1,20,2],[21,1,21,2]]}
[]
[{"$nulls":4},"Pagos"]
[]
[]
[{"$nulls":4},"En esta sección se presenta la información detallada del módulo de relación de pagos.",{"$nulls":15},"Para saber más sobre cómo completar la hoja de pagos puede consultar la sección (Hoja pagos) de la Guía de Control Interno."]
[null,"Portada"]
[]
[null,"Usuarios"]
[{"$nulls":4},"¿Su entidad gestiona sus trámites financieros en SIIF-MinHacienda?",{"$nulls":12},"NO"]
[null,"Abogados",{"$nulls":17},{"$f":"IF(R9=\"SI\",1,\" \")","v":" "}]
[{"$nulls":4},{"$f":"IFERROR(IF(T10=1,\"¿Cuántos pagos ha relacionado la entidad en ekOGUI?\",IF(T10=_xleta.NOT,\"\")),\"\")","v":""}]
[null,"Registro Casos"]
[{"$nulls":20},"Acceder a la guía"]
[null,"Judiciales"]
[]
[null,"Arbitramentos",null,null,"Observaciones"]
[{"$nulls":4},"No hay observaciones."]
[null,"Comité de Conciliación"]
[]
[null,"Pagos"]
[]
[null,"Resumen (Certificación a presentar)"]

{"sheet":"Resumen","index":8,"n_rows":50,"n_cols":23,"rows_kept":50,"merged":[[1,11,6,13],[2,7,2,8],[3,7,3,8],[5,0,5,1],[5,3,5,8],[6,0,6,1],[6,3,6,8],[7,0,7,1],[7,11,7,13],[8,0,8,1],[9,0,9,1],[9,4,9,8],[10,0,10,1],[10,4,10,8],[11,0,11,1],[12,0,12,1],[12,4,12,8],[13,0,13,1],[14,0,14,1],[14,7,14,8],[15,0,15,1],[15,7,15,8],[16,0,16,1],[16,7,16,8],[17,0,17,1],[17,7,17,8],[18,0,18,1],[18,7,18,8],[19,0,19,1],[19,7,19,8],[20,0,20,1],[21,0,21,1],[21,7,21,8],[25,7,25,8],[27,7,27,8],[34,3,34,8],[35,3,41,8],[42,3,43,8],[44,3,47,8],[49,4,49,6],[50,4,53,6]]}
[]
[{"$nulls":11},"Para saber más sobre el contenido y cómo completar la hoja resumen puede consultar la sección (Hoja resumen) de la Guía de Control Interno."]
[{"$nulls":7},"Fecha de diligenciamiento"]
[{"$nulls":7},"2025-08-26"]
[]
["Portada",null,null,"Agencia Nacional de Defensa Jurídica del Estado"]
[{"$nulls":3},{"$f":"\"Plantilla de Certificado de Control Interno semestre \"&Portada!I6","v":"Plantilla de Certificado de Control Interno semestre I - 2025"}]
["Usuarios",{"$nulls":10},"Acceder a la guía"]
[{"$nulls":9},{"$f":"+VLOOKUP(E10,Administrador!$E$2:$F$338,2,0)","v":0}]
["Abogados",null,null,"Nombre de la Entidad que reporta","CORPORACION AUTONOMA REGIONAL DEL ATLANTICO-CRA"]
[{"$nulls":3},{"$f":"IFERROR(IF(J9=1,\"Digite el nombre de la Entidad\",IF(J9=2,\"Digite el nombre de la Seccional\",\"\")),\"\")","v":""}]
["Registro Casos",{"$nulls":21},"Si"]
[{"$nulls":3},"Nombre del Jefe de Control Interno que reporta","Jose Antonio Cardozo Alvarez",{"$nulls":17},"No"]
["Judiciales",{"$nulls":21},"N/A"]
[{"$nulls":3},"INFORMACIÓN USUARIOS",{"$f":"IF(Usuarios!K11=\"\",\"Falta diligenciar\",IF(Usuarios!K13=\"\",\"Falta diligenciar\",IF(Usuarios!K15=\"\",\"Falta diligenciar\",IF(Usuarios!K17=\"\",\"Falta diligenciar\",IF(Usuarios!K19=\"\",\"Falta diligenciar\",IF(Usuarios!H11=\"\",\"Falta diligenciar\",IF(Usuarios!H13=\"\",\"Falta diligenciar\",IF(Usuarios!H15=\"\",\"Falta diligenciar\",IF(Usuarios!H17=\"\",\"Falta diligenciar\",IF(Usuarios!H19=\"\",\"Falta diligenciar\",IF(Abogados!J9=\"\",\"Falta diligenciar\",IF(Resumen!E19=\"\",\"Falta diligenciar\",IF(Abogados!P19=\"\",\"Falta diligenciar\",IF(Abogados!P21=\"\",\"Falta diligenciar\",IF(Abogados!P23=\"\",\"Falta diligenciar\",\"\")))))))))))))))","v":""},null,"ARBITRAMENTOS",{"$f":"IF(AND(Arbitramentos!L13=\"\", Arbitramentos!U13=\"\"), \"Falta diligenciar\", IF(Arbitramentos!L13=\"\", \"Falta diligenciar\", IF(Arbitramentos!U13=\"\", \"Falta diligenciar\",IF(H17=\"\", \"Falta diligenciar\",\"\"))))","v":""}]
["Arbitramentos",null,null,"Completitud de Roles",{"$f":"(COUNTA(Usuarios!K11:N20)/5)","v":{"v":1,"d":"100%"}},null,"Procesos arbitrales activos ekOGUI",{"$f":"IF(Arbitramentos!$L$13=\"\", \"\", Arbitramentos!$L$13)","v":0}]
[{"$nulls":3},"Nivel de capacitación Roles",{"$f":"(COUNTA(Usuarios!O11:Q20)/5)","v":{"v":1,"d":"100%"}},null,"Porcentaje de registro",{"$f":"IF(OR(ISBLANK(Arbitramentos!L13), ISBLANK(Arbitramentos!L11)), \"\", IF(AND(Arbitramentos!L13=0, Arbitramentos!L11=0), 0, IFERROR(Arbitramentos!L13/Arbitramentos!L11, \"\")))","v":{"v":0,"d":"0%"}}]
["Comité de Conciliación",null,null,"Abogados activos en ekOGUI",{"$f":"+Abogados!$J$9","v":8},null,"Procesos terminados en ekOGUI",{"$f":"IF(Arbitramentos!$U$13=\"\", \"\", Arbitramentos!$U$13)","v":0}]
[{"$nulls":3},"Información correcta abogados",{"$f":"IFERROR((+Abogados!I19+Abogados!I21)/(Abogados!I15*2),\" \")","v":{"v":1,"d":"100%"}}]
["Pagos",null,null,"Nivel de capacitación abogados",{"$f":"IFERROR((+Abogados!R20+Abogados!R22+Abogados!R24)/(E18),\" \")","v":{"v":0.625,"d":"63%"}}]
[]
["Resumen (Certificación a presentar)",null,null,"REGISTRO CASOS",{"$f":"IF(AND('Registro Casos'!P10=\"\"), \"Falta diligenciar\", IF('Registro Casos'!P13=\"\", \"Falta diligenciar\", IF('Registro Casos'!P16=\"\", \"Falta diligenciar\",IF('Registro Casos'!P19=\"\", \"Falta diligenciar\",\"\"))))","v":""},null,"COMITES DE CONCILIACIÓN",{"$f":"IF(AND('Comité de conciliación'!R8=\"\",'Comité de conciliación'!R10=\"\"),\"Falta diligenciar\",IF('Comité de conciliación'!J20=\"\",\"Falta diligenciar\",IF('Comité de conciliación'!J21=\"\",\"Falta diligenciar\",IF('Comité de conciliación'!J22=\"\",\"Falta diligenciar\",\"\"))))","v":""}]
[{"$nulls":3},"Casos notificados según juridíca",{"$f":"+'Registro Casos'!$P$10","v":2},null,"Gestión de sesiones",{"$f":"+'Comité de conciliación'!$R$8","v":"NO"}]
[{"$nulls":3},"Casos registrados en ekOGUI",{"$f":"+'Registro Casos'!$P$13","v":2},null,"Gestión de fichas",{"$f":"+'Comité de conciliación'!$R$10","v":"NO"}]
[{"$nulls":3},"Casos registrados en ekOGUI con oportunidad (10 días)",{"$f":"+'Registro Casos'!$P$16","v":1},null,"Fichas con decisión",{"$f":"+'Comité de conciliación'!$J$20+'Comité de conciliación'!$J$21+'Comité de conciliación'!$J$22","v":1}]
[{"$nulls":3},"Casos NO registrados con oportunidad (10 días)",{"$f":"+'Registro Casos'!$P$19","v":1}]
[]
[{"$nulls":3},"JUDICIALES",{"$f":"IF(AND(Judiciales!L14=\"\"),\"Falta diligenciar\",IF(Resumen!E30=\" \",\"Falta diligenciar\",IF(Resumen!E31=\" \",\"Falta diligenciar\",IF(Resumen!E32=\" \",\"Falta diligenciar\",IF(Resumen!E33=\" \",\"Falta diligenciar\",\"\")))))","v":"Falta diligenciar"},null,"PAGOS",{"$f":"IF(AND(Pagos!R9=\"\",Pagos!R11=\"\"),\"Falta diligenciar\",IF(Pagos!R9=\"\",\"Falta diligenciar\",\"\"))","v":""}]
[{"$nulls":3},"Procesos activos en ekOGUI",{"$f":"+Judiciales!$L$14","v":93},null,"Uso del Módulo Pagos (SIIF Nación)",{"$f":"+Pagos!R9","v":"NO"}]
[{"$nulls":3},"Porcentaje de registro",{"$f":"IFERROR(+Judiciales!L14/Judiciales!L12,\" \")","v":{"v":0.9207920792079208,"d":"92%"}},null,"Cantidad pagos asociados de SIIF",{"$f":"+Pagos!R11","v":0}]
[{"$nulls":3},"Actualización más de 33.000 SMMLV",{"$f":"IFERROR(+Judiciales!U14/Judiciales!U12,\"0\")","v":{"v":1,"d":"1.00"}}]
[{"$nulls":3},"Procesos por abogado en ekOGUI",{"$f":"IFERROR(+Judiciales!L14/Abogados!J9,\" \")","v":{"v":11.625,"d":"12"}}]
[{"$nulls":3},"Provisión aparentemente inconsistente",{"$f":"IFERROR((+Judiciales!V42+Judiciales!V40+Judiciales!V38)/(Judiciales!S38+Judiciales!S36+Judiciales!S34+Judiciales!S32),\" \")","v":" "}]
[]
[{"$nulls":3},"Observaciones generales"]
[{"$nulls":3},"No hay observaciones."]
[]
[]
[]
[]
[]
[]
[{"$nulls":3},"*️⃣Nota: Los valores arrojados en esta hoja son solo para referencia y control del diligenciamiento, no deben ser usados para calificar, cualificar o comparar a las entidades, no hay valores buenos ni malos."]
[]
[{"$nulls":3},"*️⃣CERTIFICACION DE INFORMACIÓN LITIGIOSA ekOGUI de que trata el artículo 2.2.3.4.1.14 del Decreto 1069 de 2015. En mi calidad de Jefe de Oficina de Control Interno o quien haga sus veces, CERTIFICO que se realizó la verificación del cumplimiento de las obligaciones establecidas en el Capítulo 4 del Decreto 1069 de 2015, para los usuarios del Sistema Único de Gestión e Información de la Actividad Litigiosa del Estado- ekOGUI, de conformidad con los lineamientos señalados por la Agencia Nacional de Defensa Jurídica del Estado y los procedimientos de auditoría interna definidos por la Entidad."]
[]
[]
[]
[]
[{"$nulls":4},"Firma Jefe de Control Interno"]

{"sheet":"Información a consolidar","index":9,"n_rows":4,"n_cols":71,"rows_kept":4,"hidden":true,"merged":[[0,0,0,14],[0,15,0,24],[0,25,0,28],[0,29,0,53],[0,54,0,57],[0,58,0,68],[0,69,0,70],[1,0,1,2],[1,3,1,5],[1,6,1,8],[1,9,1,11],[1,12,1,14],[1,15,1,18],[1,19,1,21],[1,22,1,24],[1,25,1,28],[1,29,1,31],[1,32,1,33],[1,34,1,38],[1,39,1,41],[1,42,1,45],[1,46,1,53],[1,54,1,55],[1,56,1,57],[1,58,1,59],[1,60,1,65],[1,66,1,68],[1,69,1,70]]}
["5.2 Usuarios",{"$nulls":14},"5.3 Abogados",{"$nulls":9},"5.4 Registro Casos ekOGUI",{"$nulls":3},"5.5 Judiciales",{"$nulls":24},"5.6 Arbitramentos",{"$nulls":3},"5.7 Comité de Conciliación ",{"$nulls":10},"5.8 Pagos"]
["Financiero",null,null,"Juridico",null,null,"Control interno",null,null,"Secretario",null,null,"Administrador",null,null,"Información",{"$nulls":3},"Completitud",null,null,"Capacitación",null,null,"Información",{"$nulls":3},"Activos",null,null,"Terminados",null,"Condenas",{"$nulls":4},"Mayores a 33.000 SMMLV",null,null,"Calificación del Riesgo",{"$nulls":3},"Provisión Contable",{"$nulls":7},"Activos",null,"Terminados",null,"Preguntas generales",null,"Fichas para decisión del comité",{"$nulls":5},"Fichas con decisión del comité",null,null,"Información"]
["Creación","Nombre","Capacitación","Creación","Nombre","Capacitación","Creación","Nombre","Capacitación","Creación","Nombre","Capacitación","Creación","Nombre","Capacitación","Cantidad de abogados litigando según jurídica","Abogados activos en ekOGUI","Retirados de la entidad según jurídica primer semestre","Inactivados en ekOGUI durante el primer semestre","De la muestra, cuantos tienen el nombre correcto","De la muestra cuantos tienen el correo electrónico de prueba correcto","De la muestra, cuantos tienen tipo de vinculación de planta","Su última capacitación fue realizada después del 01-01-2024 hasta el 30-06-2025","Su última capacitación fue anterior al 31-12-2023","No tienen capacitación","Cuántos casos (procesos arbitrales, procesos judiciales y conciliaciones extrajudiciales) fueron notificados por el buzón notificaciones judiciales a la Entidad durante el primer semestre","Cuántos de los casos notificados fueron registrados en el sistema ekOGUI durante el semestre I - 2025","De acuerdo con la pregunta anterior, cuántos casos fueron registrados con oportunidad (10 días hábiles) en el sistema ekOGUI,  conforme a la normativa (No. 3 art. 2.2.3.4.1.10 DL 104 de 2025) en el semestre I - 2025","Total de casos NO registrados en el sistema ekOGUI con oportunidad (10 días hábiles) conforme a la normativa (No. 3 art. 2.2.3.4.1.10 DL 104 de 2025) en el semestre I - 2025","Cantidad de procesos activos según jurídica","Procesos activos registrados en eKOGUI","Procesos sin abogado asignado","Procesos terminados durante el primer semestre según juridica","Procesos terminados durante el primer semestre en ekOGUI","Procesos analizados","Procesos terminados con ejecutoria","Procesos desfavorables","Procesos que generan erogación económica","Procesos con valor condena mayor a cero","Cantidad de procesos de más de 33.000 SMMLV según jurídica","Cantidad de procesos de más de 33.000 SMMLV registrados en ekOGUI","Cantidad de procesos más de 33.000 SMMLV con la pieza demanda","Cantidad de procesos activos ekOGUI - Calidad demandado","Cantidad de procesos en ekOGUI - Calificación durante o posterior al primer semestre","Cantidad de procesos en ekOGUI - Calificación anterior al primer semestre ","Cantidad de procesos en ekOGUI - Sin calificación","Alta","Alta cero","Media","Media cero","Baja","Baja cero","Remota","Remota cero","Arbitramentos activos al 30-06-2025 según jurídica","Arbitramentos activos registrados en ekOGUI al 30-06-2025","Total arbitramentos terminados según  juridica al 30-06-2025","Total arbitramentos terminados en ekOGUI al 30-06-2025","Su entidad gestionó sesiones del comité en el primer semestre de 2025","Su entidad elaboró las fichas de conciliación  durante el primer semestre","Arbitrales con fecha","Arbitrales sin fecha","Judiciales con fecha","Judiciales sin fecha","Conciliaciones  con fecha","Conciliaciones  sin fecha","Total arbitrales","Total judiciales","Total conciliaciones","Su entidad gestiona en SIIF-Minhacienda","Cuántos pagos ha relacionado la entidad en ekOGUI"]
[{"$f":"+Usuarios!$H$11","v":"2021-03-18"},{"$f":"+Usuarios!$K$11","v":"Tayro Alberto Pimienta Deluque"},{"$f":"+Usuarios!$O$11","v":"2025-01-22"},{"$f":"+Usuarios!$H$13","v":"2023-06-07"},{"$f":"+Usuarios!$K$13","v":"Paola Fontalvo Lopez"},{"$f":"+Usuarios!$O$13","v":"2025-01-22"},{"$f":"+Usuarios!$H$15","v":"2015-04-03"},{"$f":"+Usuarios!$K$15","v":"Jose Antonio Cardozo Alvarez"},{"$f":"+Usuarios!$O$15","v":"2025-01-22"},{"$f":"+Usuarios!$H$17","v":"2024-04-05"},{"$f":"+Usuarios!$K$17","v":"Jorge Paez Barros"},{"$f":"+Usuarios!$O$17","v":"2025-01-22"},{"$f":"+Usuarios!$H$19","v":"2024-12-11"},{"$f":"+Usuarios!$K$19","v":"María Luisa Mercado Cepeda"},{"$f":"+Usuarios!$O$19","v":"2025-01-22"},{"$f":"+Abogados!$G$9","v":8},{"$f":"+Abogados!$J$9","v":8},{"$f":"+Abogados!$M$9","v":1},{"$f":"+Abogados!$P$9","v":1},{"$f":"+Abogados!$I$19","v":8},{"$f":"+Abogados!$I$21","v":8},{"$f":"+Abogados!I23","v":1},{"$f":"+Abogados!$P$19","v":5},{"$f":"+Abogados!$P$21","v":0},{"$f":"+Abogados!$P$23","v":3},{"$f":"+'Registro Casos'!$P$10","v":2},{"$f":"+'Registro Casos'!$P$13","v":2},{"$f":"+'Registro Casos'!$P$16","v":1},{"$f":"+'Registro Casos'!$P$19","v":1},{"$f":"+Judiciales!$L$12","v":101},{"$f":"+Judiciales!$L$14","v":93},{"$f":"+Judiciales!$L$16","v":0},{"$f":"+Judiciales!$L$21","v":75},{"$f":"+Judiciales!$L$23","v":150},{"$f":"+Judiciales!$L$32","v":37},{"$f":"+Judiciales!$L$34","v":37},{"$f":"+Judiciales!$L$36","v":0},{"$f":"+Judiciales!$L$38","v":0},{"$f":"+Judiciales!$L$40","v":0},{"$f":"+Judiciales!$U$12","v":3},{"$f":"+Judiciales!$U$14","v":3},{"$f":"+Judiciales!$U$16","v":3},{"$f":"+Judiciales!$U$21","v":86},{"$f":"+Judiciales!$U$23","v":64},{"$f":"+Judiciales!$U$25","v":10},{"$f":"+Judiciales!$U$27","v":12},{"$f":"+Judiciales!$S$32","v":0},{"$f":"+Judiciales!$T$32","v":2},{"$f":"+Judiciales!$S$34","v":0},{"$f":"+Judiciales!$T$34","v":5},{"$f":"+Judiciales!$S$36","v":0},{"$f":"+Judiciales!$T$36","v":1},{"$f":"+Judiciales!$S$38","v":0},{"$f":"+Judiciales!$T$38","v":66},{"$f":"+Arbitramentos!$L$11","v":0},{"$f":"+Arbitramentos!$L$13","v":0},{"$f":"+Arbitramentos!$U$11","v":0},{"$f":"+Arbitramentos!$U$13","v":0},{"$f":"+'Comité de conciliación'!$R$8","v":"NO"},{"$f":"+'Comité de conciliación'!$R$10","v":"NO"},{"$f":"+'Comité de conciliación'!$J$15","v":0},{"$f":"+'Comité de conciliación'!$L$15","v":0},{"$f":"+'Comité de conciliación'!$J$16","v":0},{"$f":"+'Comité de conciliación'!$L$16","v":0},{"$f":"+'Comité de conciliación'!$J$17","v":1},{"$f":"+'Comité de conciliación'!$L$17","v":0},{"$f":"+'Comité de conciliación'!$J$20","v":0},{"$f":"+'Comité de conciliación'!$J$21","v":0},{"$f":"+'Comité de conciliación'!$J$22","v":1},{"$f":"+Pagos!$R$9","v":"NO"},{"$f":"+Pagos!R11","v":0}]

{"sheet":"Administrador","index":10,"n_rows":426,"n_cols":11,"rows_kept":426,"hidden":true,"merged":[[6,0,6,2],[7,0,7,2]]}
["SEMESTRE",null,"OPCIONES","1er","Entidad"]
["¿Actual?",{"$f":"+Portada!I6","v":"I - 2025"},null,"2do","ADMINISTRADORA COLOMBIANA DE PENSIONES-COLPENSIONES",0,null,"II - 2024","SEGUNDO",2024,"31 DE DICIEMBRE "]
[null,{"$f":"+VLOOKUP(B2,$H$2:$J$6,2,0)","v":"PRIMER"},null,null,"ADMINISTRADORA DE LOS RECURSOS DEL SISTEMA GENERAL DE SEGURIDAD SOCIAL EN SALUD-ADRES",0,null,"I - 2025","PRIMER",2025,"30 DE JUNIO "]
[null,{"$f":"+VLOOKUP(B2,$H$2:$J$6,3,0)","v":2025},null,null,"ADMINISTRADORA DEL MONOPOLIO RENTISTICO DE LOS JUEGOS DE SUERTE Y AZAR-COLJUEGOS",0,null,"II - 2025","SEGUNDO",2025,"31 DE DICIEMBRE "]
[null,{"$f":"+VLOOKUP(B2,$H$2:$K$6,4,0)","v":"30 DE JUNIO "},null,null,"AGENCIA COLOMBIANA PARA LA REINCORPORACION Y NORMALIZACION-ANR",0,null,"I - 2026","PRIMER",2026,"30 DE JUNIO "]
[{"$nulls":4},"AGENCIA DE DESARROLLO RURAL-ADR",0,null,"II - 2026","SEGUNDO",2026,"31 DE DICIEMBRE "]
["Año en curso",{"$nulls":3},"AGENCIA DE RENOVACION DEL TERRITORIO-ART",0]
[2025,{"$nulls":3},"AGENCIA DEL INSPECTOR GENERAL DE TRIBUTOS, RENTAS Y CONTRIBUCIONES PARAFISCALES-ITRC",0]
[{"$nulls":4},"AGENCIA LOGISTICA DE LAS FUERZAS MILITARES-ALFM",0,null,"2010-01-01",0]
[{"$nulls":4},"AGENCIA NACIONAL DE CONTRATACION PUBLICA - COLOMBIA COMPRA EFICIENTE-CCE",0,null,"2020-01-01",1]
[{"$nulls":4},"AGENCIA NACIONAL DE DEFENSA JURIDICA DEL ESTADO-ANDJE",0,null,"2024-01-01",2]
["¿Uso de módulo de pagos?",null,"OPCIONES","SI","AGENCIA NACIONAL DE HIDROCARBUROS-ANH",0]
["Respuesta",{"$f":"Pagos!R9","v":"NO"},null,"NO","AGENCIA NACIONAL DE INFRAESTRUCTURA-ANI",0]
[{"$nulls":4},"AGENCIA NACIONAL DE MINERIA-ANM",0]
[{"$nulls":4},"AGENCIA NACIONAL DE SEGURIDAD VIAL-ANSV",0]
[{"$nulls":4},"AGENCIA NACIONAL DE TIERRAS-ANT",0]
[{"$nulls":4},"AGENCIA NACIONAL DEL ESPECTRO-ANE",0]
[{"$nulls":4},"AGENCIA NACIONAL INMOBILIARIA VIRGILIO BARCO VARGAS-",0]
[{"$nulls":4},"AGENCIA PRESIDENCIAL DE COOPERACION INTERNACIONAL DE COLOMBIA-APC",0]
[{"$nulls":4},"ARCHIVO GENERAL DE LA NACION-AGN",0]
[{"$nulls":4},"ARCO GRUPO BANCOLDEX S.A. COMPANIA DE FINANCIAMIENTO-LEASING BANCOLDEX",0]
[{"$nulls":4},"ARMADA NACIONAL-ARC",0]
[{"$nulls":4},"ARTESANIAS DE COLOMBIA S.A.-",0]
[{"$nulls":4},"AUDITORIA GENERAL DE LA REPUBLICA-AGR",0]
[{"$nulls":4},"AUTORIDAD NACIONAL DE ACUICULTURA Y PESCA-AUNAP",0]
[{"$nulls":4},"AUTORIDAD NACIONAL DE LICENCIAS AMBIENTALES-ANLA",0]
[{"$nulls":4},"AUTORIDAD NACIONAL DE TELEVISIÓN EN LIQUIDACIÓN-ANTV",0]
[{"$nulls":4},"BANCO AGRARIO DE COLOMBIA S.A.-BANAGRARIO",0]
[{"$nulls":4},"BANCO DE COMERCIO EXTERIOR DE COLOMBIA S.A.-BANCOLDEX",0]
[{"$nulls":4},"BANCO DE LA REPUBLICA-BANREP",0]
[{"$nulls":4},"BIOENERGY S.A.S.-",0]
[{"$nulls":4},"BIOENERGY ZONA FRANCA S.A.S.-",0]
[{"$nulls":4},"CAJA DE COMPENSACION FAMILIAR CAMPESINA- COMCAJA-COMCAJA",0]
[{"$nulls":4},"CAJA DE RETIRO DE LAS FUERZAS MILITARES-CREMIL",0]
[{"$nulls":4},"CAJA DE SUELDOS DE RETIRO DE LA POLICIA NACIONAL-CASUR",0]
[{"$nulls":4},"CAJA PROMOTORA DE VIVIENDA MILITAR Y DE POLICIA-CAJAHONOR",0]
[{"$nulls":4},"CAMARA DE REPRESENTANTES-CAMARA ",0]
[{"$nulls":4},"CANAL REGIONAL DE TELEVISION DEL CARIBE LTDA-TELECARIBE",0]
[{"$nulls":4},"CANAL REGIONAL DE TELEVISION TEVEANDINA LTDA-TV ANDINA",0]
[{"$nulls":4},"CENIT TRANSPORTE Y LOGISTICA DE HIDROCARBUROS-CENIT",0]
[{"$nulls":4},"CENTRAL DE ABASTOS DE CUCUTA S.A.- EN LIQUIDACION--CENABASTOS S.A.",0]
[{"$nulls":4},"CENTRAL DE INVERSIONES S.A.-CISA",0]
[{"$nulls":4},"CENTRALES ELECTRICAS DE NARINO S.A. E.S.P.-CEDENAR",0]
[{"$nulls":4},"CENTRALES ELECTRICAS DEL CAUCA S.A. E.S.P.-CEDELCA",0]
[{"$nulls":4},"CENTRO DE DIAGNÓSTICO AUTOMOTOR DE CALDAS-",0]
[{"$nulls":4},"CENTRO DERMATOLOGICO FEDERICO LLERAS ACOSTA EMPRESA SOCIAL DEL ESTADO-",0]
[{"$nulls":4},"CENTRO NACIONAL DE MEMORIA HISTORICA-",0]
[{"$nulls":4},"CLUB MILITAR DE OFICIALES-CLUB MILITAR",0]
[{"$nulls":4},"COMANDO GENERAL DE LAS FUERZAS MILITARES-CGFM",0]
[{"$nulls":4},"COMISION DE REGULACION DE AGUA POTABLE Y SANEAMIENTO BASICO-CRA",0]
[{"$nulls":4},"COMISION DE REGULACION DE COMUNICACIONES-CRC",0]
[{"$nulls":4},"COMISION DE REGULACION DE ENERGIA Y GAS-CREG",0]
[{"$nulls":4},"COMISION NACIONAL DEL SERVICIO CIVIL-CNSC",0]
[{"$nulls":4},"COMISION PARA EL ESCLARECIMIENTO DE LA VERDAD, LA CONVIVENCIA Y LA NO REPETICION-CEV",0]
[{"$nulls":4},"COMISIONADO PARA LA POLICIA- MINISTERIO DE DEFENSA NACIONAL-",0]
[{"$nulls":4},"COMPANIA DE EXPERTOS EN MERCADO S.A - XM S.A -XM S.A.",0]
[{"$nulls":4},"COMPUTADORES PARA EDUCAR-CPE",0]
[{"$nulls":4},"CONCESION COSTERA CARTAGENA BARRANQUILLA S.A.S-",0]
[{"$nulls":4},"CONSEJO NACIONAL ELECTORAL-CNE",0]
[{"$nulls":4},"CONSEJO PROFESIONAL NACIONAL DE ARQUITECTURA Y SUS PROFESIONALES AUXILIARES-CPNAA",0]
[{"$nulls":4},"CONSEJO PROFESIONAL NACIONAL DE INGENIERIA-COPNIA",0]
[{"$nulls":4},"CONSORCIO FONDO COLOMBIA EN PAZ 2019-PA-FCP",0]
[{"$nulls":4},"CONTRALORIA GENERAL DE LA REPUBLICA-CGR",0]
[{"$nulls":4},"CORPORACION  AUTONOMA REGIONAL DEL ALTO MAGDALENA-CAM",0]
[{"$nulls":4},"CORPORACION AUTONOMA REGIONAL DE BOYACA-CORPOBOYACA",0]
[{"$nulls":4},"CORPORACION AUTONOMA REGIONAL DE CALDAS-CORPOCALDAS",0]
[{"$nulls":4},"CORPORACION AUTONOMA REGIONAL DE CHIVOR -CORPOCHIVOR",0]
[{"$nulls":4},"CORPORACION AUTONOMA REGIONAL DE CUNDINAMARCA-CAR",0]
[{"$nulls":4},"CORPORACION AUTONOMA REGIONAL DE LA FRONTERA NORORIENTAL-CORPONOR",0]
[{"$nulls":4},"CORPORACION AUTONOMA REGIONAL DE LA GUAJIRA-CORPOGUAJIRA",0]
[{"$nulls":4},"CORPORACION AUTONOMA REGIONAL DE LA ORINOQUIA-CORPORINOQUIA",0]
[{"$nulls":4},"CORPORACION AUTONOMA REGIONAL DE LAS CUENCAS DE LOS RIOS NEGRO Y NARE-CORNARE",0]
[{"$nulls":4},"CORPORACION AUTONOMA REGIONAL DE LOS VALLES DEL SINU Y DEL SAN JORGE-CVS",0]
[{"$nulls":4},"CORPORACION AUTONOMA REGIONAL DE NARINO-CORPONARINO",0]
[{"$nulls":4},"CORPORACION AUTONOMA REGIONAL DE RISARALDA-CARDER",0]
[{"$nulls":4},"CORPORACION AUTONOMA REGIONAL DE SANTANDER-CAS",0]
[{"$nulls":4},"CORPORACION AUTONOMA REGIONAL DE SUCRE-CARSUCRE",0]
[{"$nulls":4},"CORPORACION AUTONOMA REGIONAL DEL ATLANTICO-CRA",0]
[{"$nulls":4},"CORPORACION AUTONOMA REGIONAL DEL CANAL DEL DIQUE-CARDIQUE",0]
[{"$nulls":4},"CORPORACION AUTONOMA REGIONAL DEL CAUCA-CRC",0]
[{"$nulls":4},"CORPORACION AUTONOMA REGIONAL DEL CENTRO DE ANTIOQUIA-CORANTIOQUIA",0]
[{"$nulls":4},"CORPORACION AUTONOMA REGIONAL DEL CESAR-CORPOCESAR",0]
[{"$nulls":4},"CORPORACION AUTONOMA REGIONAL DEL GUAVIO-CORPOGUAVIO",0]
[{"$nulls":4},"CORPORACION AUTONOMA REGIONAL DEL MAGDALENA-CORPAMAG",0]
[{"$nulls":4},"CORPORACION AUTONOMA REGIONAL DEL QUINDIO-CRQ",0]
[{"$nulls":4},"CORPORACION AUTONOMA REGIONAL DEL RIO GRANDE DEL MAGDALENA-CORMAGDALENA",0]
[{"$nulls":4},"CORPORACION AUTONOMA REGIONAL DEL SUR DE BOLIVAR-CARCSB",0]
[{"$nulls":4},"CORPORACION AUTONOMA REGIONAL DEL TOLIMA-CORTOLIMA",0]
[{"$nulls":4},"CORPORACION AUTONOMA REGIONAL DEL VALLE DEL CAUCA-CVC",0]
[{"$nulls":4},"CORPORACION AUTONOMA REGIONAL PARA EL DESARROLLO SOSTENIBLE DEL CHOCO-CODECHOCO",0]
[{"$nulls":4},"CORPORACION AUTONOMA REGIONAL PARA LA DEFENSA DE LA MESETA DE BUCARAMANGA-CDMB",0]
[{"$nulls":4},"CORPORACION COLOMBIANA DE INVESTIGACION AGROPECUARIA-CORPOICA",0]
[{"$nulls":4},"CORPORACION DE CIENCIA Y TECNOLOGIA PARA EL DESARROLLO DE LA INDUSTRIA NAVAL, MARITIMA Y FLUVIAL-COTECMAR",0]
[{"$nulls":4},"CORPORACION DE LA INDUSTRIA AERONAUTICA COLOMBIANA S.A.-CIAC",0]
[{"$nulls":4},"CORPORACION NACIONAL PARA LA RECONSTRUCCION DE LA CUENCA DEL RIO PAEZ Y ZONAS ALEDANAS-NASA KIWE",0]
[{"$nulls":4},"CORPORACION PARA EL DESARROLLO SOSTENIBLE DE LA MOJANA Y EL SAN JORGE-CORPOMOJANA",0]
[{"$nulls":4},"CORPORACION PARA EL DESARROLLO SOSTENIBLE DEL ARCHIPIELAGO DE SAN ANDRES PROVIDENCIA Y SANTA CATALINA-CORALINA",0]
[{"$nulls":4},"CORPORACION PARA EL DESARROLLO SOSTENIBLE DEL AREA DE MANEJO ESPECIAL LA MACARENA-CORMACARENA",0]
[{"$nulls":4},"CORPORACION PARA EL DESARROLLO SOSTENIBLE DEL NORTE Y ORIENTE DE LA AMAZONIA-CDA",0]
[{"$nulls":4},"CORPORACION PARA EL DESARROLLO SOSTENIBLE DEL SUR DE LA AMAZONIA-CORPOAMAZONIA",0]
[{"$nulls":4},"CORPORACION PARA EL DESARROLLO SOSTENIBLE DEL URABA-CORPOURABA",0]
[{"$nulls":4},"DEFENSA CIVIL COLOMBIANA-DC",0]
[{"$nulls":4},"DEFENSORIA DEL PUEBLO-",0]
[{"$nulls":4},"DEPARTAMENTO ADMINISTRATIVO DE LA FUNCION PUBLICA-DAFP",0]
[{"$nulls":4},"DEPARTAMENTO ADMINISTRATIVO DE LA PRESIDENCIA DE LA REPUBLICA-DAPRE",0]
[{"$nulls":4},"DEPARTAMENTO ADMINISTRATIVO DIRECCION NACIONAL DE INTELIGENCIA-DNI",0]
[{"$nulls":4},"DEPARTAMENTO ADMINISTRATIVO NACIONAL DE ESTADISTICA-DANE",0]
[{"$nulls":4},"DEPARTAMENTO ADMINISTRATIVO PARA LA PROSPERIDAD SOCIAL-DPS",0]
[{"$nulls":4},"DEPARTAMENTO NACIONAL DE PLANEACION-DNP",0]
[{"$nulls":4},"DIRECCION DE IMPUESTOS Y ADUANAS NACIONALES - DIAN -NIVEL CENTRAL-DIAN",2]
[{"$nulls":4},"DIRECCION DE SANIDAD DE LA POLICIA NACIONAL-DISAN",0]
[{"$nulls":4},"DIRECCION EJECUTIVA DE ADMINISTRACION JUDICIAL - NIVEL CENTRAL-DEAJ",2]
[{"$nulls":4},"DIRECCION GENERAL DE LA POLICIA NACIONAL-PONAL",2]
[{"$nulls":4},"DIRECCION GENERAL DE SANIDAD MILITAR -DGSM",0]
[{"$nulls":4},"DIRECCION GENERAL MARITIMA -DIMAR",0]
[{"$nulls":4},"DIRECCION NACIONAL DE BOMBEROS DE COLOMBIA-DNBC",0]
[{"$nulls":4},"DIRECCION NACIONAL DE DERECHO DE AUTOR-DNDA",0]
[{"$nulls":4},"ECOPETROL S.A. - NIVEL CENTRAL-ECOPETROL",0]
[{"$nulls":4},"EJERCITO NACIONAL -EJC",0]
[{"$nulls":4},"ELECTRIFICADORA DEL CAQUETA S.A. E.S.P.-ELECTROCAQUETA",0]
[{"$nulls":4},"ELECTRIFICADORA DEL HUILA S.A. E.S.P.-ELECTROHUILA",0]
[{"$nulls":4},"ELECTRIFICADORA DEL META S.A. E.S.P.-EMSA",0]
[{"$nulls":4},"ELECTRIFICADORA DEL TOLIMA SA  EMPRESA DE SERVICIOS PUBLICOS ELECTROLIMA SA ESP EN LIQUIDACION-ELECTROLIMA",0]
[{"$nulls":4},"EMPRESA COLOMBIANA DE PETROLEOS - ECOPETROL - REGIONAL ORINOQUIA-ECOPETROL",0]
[{"$nulls":4},"EMPRESA COLOMBIANA DE PRODUCTOS VETERINARIOS S.A.-VECOL",0]
[{"$nulls":4},"EMPRESA DE ENERGIA DEL AMAZONAS S.A. E.S.P.-",0]
[{"$nulls":4},"EMPRESA DE ENERGIA DEL ARCHIPIELAGO DE SAN ANDRES, PROVIDENCIA Y SANTA CATALINA S.A. E.S.P.-EADAS SA ESP",0]
[{"$nulls":4},"EMPRESA DE TELECOMUNICACIONES DE BUCARAMANGA S.A E.S.P -TELEBUCARAMANGA",0]
[{"$nulls":4},"EMPRESA DISTRIBUIDORA DEL PACIFICO S.A. E.S.P.-DISPAC ",0]
[{"$nulls":4},"EMPRESA NACIONAL PROMOTORA DEL DESARROLLO TERRITORIAL-ENTERRITORIO",0]
[{"$nulls":4},"EMPRESA PUBLICA DE ALCANTARILLADO DE SANTANDER S.A. E.S.P.-EMPAS",0]
[{"$nulls":4},"EMPRESA URRA S.A. E.S.P.-URRÁ",0]
[{"$nulls":4},"ESCUELA SUPERIOR DE ADMINISTRACION PUBLICA-ESAP",0]
[{"$nulls":4},"ESCUELA TECNOLOGICA INSTITUTO TECNICO CENTRAL-ITC",0]
[{"$nulls":4},"ESENTTIA MASTERBATCH LTDA-ESENTTIA MB",0]
[{"$nulls":4},"ESENTTIA S.A-",0]
[{"$nulls":4},"FIDEICOMISO ADMINISTRACION DE CONTINGENCIAS CONCESIONES SALINAS-",0]
[{"$nulls":4},"FIDEICOMISO ALCALIS RECONOCIMIENTO DE PENSIONES-",0]
[{"$nulls":4},"FIDEICOMISO CREDITOS LITIGIOSOS ALCALIS-",0]
[{"$nulls":4},"FIDEICOMISO CREDITOS LITIGIOSOS IFI-",0]
[{"$nulls":4},"FIDEICOMISO DE PROMOCION DE EXPORTACIONES PROCOLOMBIA-PROCOLOMBIA",0]
[{"$nulls":4},"FIDEICOMISO EMSOLMEC-",0]
[{"$nulls":4},"FIDEICOMISO FONDO NACIONAL DE SALUD-FONDOPPL",0]
[{"$nulls":4},"FIDEICOMISO IFI PENSIONES-",0]
[{"$nulls":4},"FIDUCIARIA COLOMBIANA DE COMERCIO EXTERIOR S.A.-FIDUCOLDEX",0]
[{"$nulls":4},"FIDUCIARIA LA PREVISORA S.A.-FIDUPREVISORA",0]
[{"$nulls":4},"FINANCIERA DE DESARROLLO NACIONAL-FDN",0]
[{"$nulls":4},"FINANCIERA DE DESARROLLO TERRITORIAL S.A.-FINDETER",0]
[{"$nulls":4},"FISCALIA GENERAL DE LA NACION-FISCALIA ",0]
[{"$nulls":4},"FONDO ADAPTACION-",0]
[{"$nulls":4},"FONDO DE BIENESTAR SOCIAL DE LA CONTALORIA GENERAL DE LA REPUBLICA-FBSCGR",0]
[{"$nulls":4},"FONDO DE DESARROLLO DE LA EDUCACION SUPERIOR-FODESEP",0]
[{"$nulls":4},"FONDO DE FINANCIAMIENTO DE LA INFRAESTRUCTURA EDUCATIVA-FFIE",0]
[{"$nulls":4},"FONDO DE GARANTIAS DE ENTIDADES COOPERATIVAS-FOGACOOP",0]
[{"$nulls":4},"FONDO DE GARANTIAS DE INSTITUCIONES FINANCIERAS-FOGAFIN",0]
[{"$nulls":4},"FONDO DE PASIVO SOCIAL DE FERROCARRILES NACIONALES DE COLOMBIA-FPS",0]
[{"$nulls":4},"FONDO DE PRESTACIONES SOCIALES DEL MAGISTERIO-FOMAG",0]
[{"$nulls":4},"FONDO DE PREVISION SOCIAL DEL CONGRESO DE LA REPUBLICA-FONPRECON",0]
[{"$nulls":4},"FONDO DE TECNOLOGIAS DE LA INFORMACION Y LAS COMUNICACIONES-FONTIC",0]
[{"$nulls":4},"FONDO NACIONAL DE AHORRO-FNA",0]
[{"$nulls":4},"FONDO NACIONAL DE ESTUPEFACIENTES-FNE",0]
[{"$nulls":4},"FONDO NACIONAL DE GARANTIAS S.A.-FNG",0]
[{"$nulls":4},"FONDO NACIONAL DE VIVIENDA-FONVIVIENDA",0]
[{"$nulls":4},"FONDO NACIONAL DEL PASIVO PENSIONAL Y PRESTACIONAL DE LA ELECTRIFICADORA DEL CARIBE S.A. E.S.P –FONECA-FONECA",0]
[{"$nulls":4},"FONDO PARA EL FINANCIAMIENTO DEL SECTOR AGROPECUARIO-FINAGRO",0]
[{"$nulls":4},"FONDO ROTATORIO DE LA POLICIA NACIONAL-FORPO",0]
[{"$nulls":4},"FONDO ROTATORIO DE LA REGISTRADURIA NACIONAL DEL ESTADO CIVIL-",0]
[{"$nulls":4},"FONDO ROTATORIO DEL DEPARTAMENTO ADMINISTRATIVO NACIONAL DE ESTADISTICA-FONDANE",0]
[{"$nulls":4},"FONDO ROTATORIO DEL MINISTERIO DE RELACIONES EXTERIORES-",0]
[{"$nulls":4},"FONDO SOCIAL DE VIVIENDA DE LA REGISTRADURIA NACIONAL DEL ESTADO CIVIL-",0]
[{"$nulls":4},"FUERZA AEREA COLOMBIANA-FAC",0]
[{"$nulls":4},"GENERADORA Y COMERCIALIZADORA DE ENERGIA DEL CARIBE S.A. E.S.P.-GECELCA ",0]
[{"$nulls":4},"GESTION ENERGETICA S.A. E.S.P.-GENSA ",0]
[{"$nulls":4},"HOSPITAL MILITAR CENTRAL-",0]
[{"$nulls":4},"IMPRENTA NACIONAL DE COLOMBIA-",0]
[{"$nulls":4},"INDUSTRIA MILITAR-INDUMIL",0]
[{"$nulls":4},"INFRAESTRUCTURA ASSET MANAGEMENT COLOMBIA S.A.S.-INFRAMCO",0]
[{"$nulls":4},"INSTITUTO AMAZONICO DE INVESTIGACIONES CIENTIFICAS-SINCHI",0]
[{"$nulls":4},"INSTITUTO CARO Y CUERVO-",0]
[{"$nulls":4},"INSTITUTO COLOMBIANO AGROPECUARIO-ICA",0]
[{"$nulls":4},"INSTITUTO COLOMBIANO DE ANTROPOLOGIA E HISTORIA-ICANH",0]
[{"$nulls":4},"INSTITUTO COLOMBIANO DE BIENESTAR FAMILIAR - NIVEL CENTRAL-ICBF",0]
[{"$nulls":4},"INSTITUTO COLOMBIANO DE CREDITO EDUCATIVO Y ESTUDIOS TECNICOS EN EL EXTERIOR MARIANO OSPINA PEREZ-ICETEX",0]
[{"$nulls":4},"INSTITUTO COLOMBIANO DE DESARROLLO RURAL - INCODER-INCODER",0]
[{"$nulls":4},"INSTITUTO COLOMBIANO PARA LA EVALUACION DE LA EDUCACION-ICFES",0]
[{"$nulls":4},"INSTITUTO DE CASAS FISCALES DEL EJERCITO-ICFE",0]
[{"$nulls":4},"INSTITUTO DE EVALUACION TECNOLOGICA EN SALUD-IETS",0]
[{"$nulls":4},"INSTITUTO DE HIDROLOGIA, METEOROLOGIA Y ESTUDIOS AMBIENTALES-IDEAM",0]
[{"$nulls":4},"INSTITUTO DE INVESTIGACION DE RECURSOS BIOLOGICOS ALEXANDER VON HUMBOLDT-HUMBOLDT",0]
[{"$nulls":4},"INSTITUTO DE INVESTIGACIONES AMBIENTALES DEL PACIFICO JOHN VON NEUMANN-IIAP",0]
[{"$nulls":4},"INSTITUTO DE INVESTIGACIONES MARINAS Y COSTERAS JOSE BENITO VIVES DE ANDREIS-INVEMAR",0]
[{"$nulls":4},"INSTITUTO DE PLANIFICACION Y PROMOCION DE SOLUCIONES ENERGETICAS PARA LAS ZONAS NO INTERCONECTADAS-IPSE",0]
[{"$nulls":4},"INSTITUTO GEOGRAFICO AGUSTIN CODAZZI-IGAC",0]
[{"$nulls":4},"INSTITUTO NACIONAL DE CANCEROLOGIA - EMPRESA SOCIAL DEL ESTADO-",0]
[{"$nulls":4},"INSTITUTO NACIONAL DE FORMACION TECNICA PROFESIONAL DE SAN JUAN DEL CESAR-INFOTEP ",0]
[{"$nulls":4},"INSTITUTO NACIONAL DE FORMACION TECNICA PROFESIONAL DEL DEPARTAMENTO DE SAN ANDRES, PROVIDENCIA Y SANTA CATALINA-INFOTEP SAN ANDRES",0]
[{"$nulls":4},"INSTITUTO NACIONAL DE MEDICINA LEGAL Y CIENCIAS FORENSES-",0]
[{"$nulls":4},"INSTITUTO NACIONAL DE METROLOGIA-INM",0]
[{"$nulls":4},"INSTITUTO NACIONAL DE SALUD-INS",0]
[{"$nulls":4},"INSTITUTO NACIONAL DE VIAS-INVIAS",0]
[{"$nulls":4},"INSTITUTO NACIONAL DE VIGILANCIA DE MEDICAMENTOS Y ALIMENTOS-INVIMA",0]
[{"$nulls":4},"INSTITUTO NACIONAL PARA CIEGOS-INCI",0]
[{"$nulls":4},"INSTITUTO NACIONAL PARA SORDOS-INSOR",0]
[{"$nulls":4},"INSTITUTO NACIONAL PENITENCIARIO Y CARCELARIO-INPEC",0]
[{"$nulls":4},"INSTITUTO TECNICO NACIONAL DE COMERCIO SIMON RODRIGUEZ-INTENALCO",0]
[{"$nulls":4},"INSTITUTO TOLIMENSE DE FORMACION TECNICA PROFESIONAL-ITFIP",0]
[{"$nulls":4},"INTERCOLOMBIA S.A. E.S.P-INTERCOLOLOMBIA S.A",0]
[{"$nulls":4},"INTERCONEXION ELECTRICA S.A. E.S.P.-ISA",0]
[{"$nulls":4},"INTERNEXA S.A-",0]
[{"$nulls":4},"JURISDICCION ESPECIAL PARA LA PAZ-JEP",0]
[{"$nulls":4},"JUSTICIA PENAL MILITAR -JPM",0]
[{"$nulls":4},"LA PREVISORA COMPAÑIA DE SEGUROS - RECOBROS Y SALVAMENTOS-PREVISORA",0]
[{"$nulls":4},"LA PREVISORA S.A. COMPANIA DE SEGUROS-PREVISORA",0]
[{"$nulls":4},"MINISTERIO DE AGRICULTURA Y DESARROLLO RURAL-MADR",0]
[{"$nulls":4},"MINISTERIO DE AMBIENTE Y DESARROLLO SOSTENIBLE-MINAMBIENTE",0]
[{"$nulls":4},"MINISTERIO DE CIENCIA  TECNOLOGÍA E INNOVACIÓN-MINCIENCIAS",0]
[{"$nulls":4},"MINISTERIO DE COMERCIO, INDUSTRIA Y TURISMO-MINCIT",0]
[{"$nulls":4},"MINISTERIO DE CULTURA-MINCULTURA",0]
[{"$nulls":4},"MINISTERIO DE DEFENSA NACIONAL-MINDEFENSA",0]
[{"$nulls":4},"MINISTERIO DE EDUCACION NACIONAL-MEN",0]
[{"$nulls":4},"MINISTERIO DE EDUCACION NACIONAL - COMPARTIDO-MEN",0]
[{"$nulls":4},"MINISTERIO DE HACIENDA Y CREDITO PUBLICO-MINHACIENDA",0]
[{"$nulls":4},"MINISTERIO DE JUSTICIA Y DEL DERECHO-MINJUSTICIA",0]
[{"$nulls":4},"MINISTERIO DE MINAS Y ENERGIA-MINMINAS",0]
[{"$nulls":4},"MINISTERIO DE RELACIONES EXTERIORES-",0]
[{"$nulls":4},"MINISTERIO DE SALUD Y PROTECCION SOCIAL-MINSALUD",0]
[{"$nulls":4},"MINISTERIO DE TECNOLOGIAS DE LA INFORMACION Y LAS COMUNICACIONES-MINTIC",0]
[{"$nulls":4},"MINISTERIO DE TRANSPORTE-MINTRANSPORTE",0]
[{"$nulls":4},"MINISTERIO DE VIVIENDA, CIUDAD Y TERRITORIO-MINVIVIENDA",0]
[{"$nulls":4},"MINISTERIO DEL DEPORTE-",0]
[{"$nulls":4},"MINISTERIO DEL INTERIOR-MININTERIOR",0]
[{"$nulls":4},"MINISTERIO DEL TRABAJO-MINTRABAJO",0]
[{"$nulls":4},"OLEODUCTO BICENTENARIO DE COLOMBIA S.A.S.-",0]
[{"$nulls":4},"OLEODUCTO CENTRAL S.A.S-OCENSA ",0]
[{"$nulls":4},"OLEODUCTO DE COLOMBIA S.A.-ODC",0]
[{"$nulls":4},"OPERACIONES TECNOLOGICAS Y COMERCIALES S.A.S.-OPTECOM ",0]
[{"$nulls":4},"ORGANISMO NACIONAL DE ACREDITACION-ONAC",0]
[{"$nulls":4},"PAP CAJA AGRARIA PENSIONES-",0]
[{"$nulls":4},"PAR - PATRIMONIO AUTONOMO DE REMANENTES DE TELECOMUNICACIONES-",0]
[{"$nulls":4},"PAR BANCO CAFETERO EN LIQUIDACION-",0]
[{"$nulls":4},"PAR BANCO DEL ESTADO EN LIQUIDACION-",0]
[{"$nulls":4},"PAR BCH EN LIQUIDACION-",0]
[{"$nulls":4},"PAR BCH EN LIQUIDACION - FIDUAGRARIA-",0]
[{"$nulls":4},"PAR CAJA AGRARIA EN LIQUIDACION C.A.L-",0]
[{"$nulls":4},"PAR CAPRECOM LIQUIDADO-",0]
[{"$nulls":4},"PAR E.S.E ANTONIO NARINO-",0]
[{"$nulls":4},"PAR INCODER EN LIQUIDACION-",0]
[{"$nulls":4},"PAR INURBE EN LIQUIDACION-",0]
[{"$nulls":4},"PARQUES NACIONALES NATURALES DE COLOMBIA-",0]
[{"$nulls":4},"PATRIMONIO AUTONOMO BANCO CAFETERO-",0]
[{"$nulls":4},"PATRIMONIO AUTONOMO BANCO CENTRAL HIPOTECARIO EN LIQUIDACION -PROCESOS--",0]
[{"$nulls":4},"PATRIMONIO AUTONOMO CAJANAL E.I.C.E. EN LIQUIDACION-",0]
[{"$nulls":4},"PATRIMONIO AUTONOMO CAJANAL EICE EN LIQUIDACION CNPS CUOTAS PARTES PENSIONALES-",0]
[{"$nulls":4},"PATRIMONIO AUTÓNOMO COLOMBIA PRODUCTIVA-",0]
[{"$nulls":4},"PATRIMONIO AUTONOMO DE REMANENTES COMISION NACIONAL DE TELEVISION -PARCNTV",0]
[{"$nulls":4},"PATRIMONIO AUTONOMO DE REMANENTES DEL EXTINTO DEPARTAMENTO ADMINISTRATIVO DAS Y SU FONDO ROTATORIO-PAR DAS",0]
[{"$nulls":4},"PATRIMONIO AUTONOMO DE REMANENTES DEL ISS EN LIQUIDACION-PAR ISS",0]
[{"$nulls":4},"PATRIMONIO AUTONOMO DE REMANENTES E.S.E. FRANCISCO DE PAULA SANTANDER EN LIQUIDACION-",0]
[{"$nulls":4},"PATRIMONIO AUTONOMO DE REMANENTES PAR ANTV LIQUIDADA-PAR ANTV",0]
[{"$nulls":4},"PATRIMONIO AUTONOMO FONDO NACIONAL DE SALUD DE LAS PERSONAS PRIVADAS DE LA LIBERTAD-",0]
[{"$nulls":4},"PATRIMONIO AUTÓNOMO FONDO NACIONAL DE TURISMO FONTUR-FONTUR",0]
[{"$nulls":4},"PATRIMONIO AUTONOMO IFI PENSIONES-",0]
[{"$nulls":4},"PATRIMONIO AUTONOMO INNPULSA-",0]
[{"$nulls":4},"PATRIMONIO AUTONOMO PAP E.S.E JOSE PRUDENCIO PADILLA EN LIQUIDACION-",0]
[{"$nulls":4},"PATRIMONIO AUTONOMO PAP E.S.E. POLICARPA SALAVARRIETA EN LIQUIDACION-",0]
[{"$nulls":4},"PATRIMONIO AUTONOMO PAP EMPRESA DE ENERGIA ELECTRICA DE MAGANGUE S.A. E.S.P. EN LIQUIDACION-",0]
[{"$nulls":4},"PATRIMONIO AUTONOMO PAP ETESA EN LIQUIDACION PAR-",0]
[{"$nulls":4},"PATRIMONIO AUTONOMO PAR CAJANAL S.A. E.P.S EN LIQUIDACION-",0]
[{"$nulls":4},"PATRIMONIO RECEPTOR DE LOS ACTIVOS DE TELECOM Y LAS TELEASOCIADAS-PARAPAT",0]
[{"$nulls":4},"POSITIVA COMPAÑIA DE SEGUROS S.A.-",0]
[{"$nulls":4},"PROCURADURIA GENERAL DE LA NACION-PGN",0]
[{"$nulls":4},"PROGRAMA DE VIVIENDA  RURAL-VISR",0]
[{"$nulls":4},"REFINERIA DE CARTAGENA S.A.S-REFICAR",0]
[{"$nulls":4},"REGISTRADURIA NACIONAL DEL ESTADO CIVIL-",0]
[{"$nulls":4},"SANATORIO DE AGUA DE DIOS, EMPRESA SOCIAL DEL ESTADO-SANATORIO DE AGUA DE DIOS E.S.E.",0]
[{"$nulls":4},"SANATORIO DE CONTRATACION, EMPRESA SOCIAL DEL ESTADO-",0]
[{"$nulls":4},"SENADO DE LA REPUBLICA-SENADO",0]
[{"$nulls":4},"SERVICIO AEREO A TERRITORIOS NACIONALES S.A.-SATENA S.A.",0]
[{"$nulls":4},"SERVICIO GEOLOGICO COLOMBIANO-SGC",0]
[{"$nulls":4},"SERVICIO NACIONAL DE APRENDIZAJE-SENA",0]
[{"$nulls":4},"SERVICIOS POSTALES NACIONALES S.A.-4-72",0]
[{"$nulls":4},"SISTEMAS INTELIGENTES EN RED S.A.S.-",0]
[{"$nulls":4},"SOCIEDAD DE ACTIVOS ESPECIALES S.A.S.-SAE",0]
[{"$nulls":4},"SOCIEDAD DE TELEVISION DE CALDAS, RISARALDA Y QUINDIO LTDA -TELECAFE",0]
[{"$nulls":4},"SOCIEDAD FIDUCIARIA DE DESARROLLO AGROPECUARIO S.A.-FIDUAGRARIA",0]
[{"$nulls":4},"SOCIEDAD HOTELERA TEQUENDAMA S.A. - CROWNE PLAZA-SHT",0]
[{"$nulls":4},"SOCIEDAD RADIO TELEVISION NACIONAL DE COLOMBIA-RTVC",0]
[{"$nulls":4},"SUPERINTENDENCIA DE INDUSTRIA Y COMERCIO-SUPERINDUSTRIA",0]
[{"$nulls":4},"SUPERINTENDENCIA DE LA ECONOMIA SOLIDARIA-SUPERSOLIDARIA",0]
[{"$nulls":4},"SUPERINTENDENCIA DE NOTARIADO Y REGISTRO-SNR",0]
[{"$nulls":4},"SUPERINTENDENCIA DE SERVICIOS PUBLICOS DOMICILIARIOS-SUPESERVICIOS",0]
[{"$nulls":4},"SUPERINTENDENCIA DE SOCIEDADES-SUPERSOCIEDADES",0]
[{"$nulls":4},"SUPERINTENDENCIA DE TRANSPORTE-SUPERTRANSPORTE",0]
[{"$nulls":4},"SUPERINTENDENCIA DE VIGILANCIA Y SEGURIDAD PRIVADA-SUPERVIGILANCIA",0]
[{"$nulls":4},"SUPERINTENDENCIA DEL SUBSIDIO FAMILIAR-SSF",0]
[{"$nulls":4},"SUPERINTENDENCIA FINANCIERA DE COLOMBIA-SUPERFINANCIERA",0]
[{"$nulls":4},"SUPERINTENDENCIA NACIONAL DE SALUD-SUPERSALUD",0]
[{"$nulls":4},"TRANSELCA S.A. E.S.P.-TRANSELCA",0]
[{"$nulls":4},"TRIBUNAL MEDICO LABORAL -",0]
[{"$nulls":4},"U.A.E DE GESTION DE RESTITUCION DE TIERRAS DESPOJADAS-",0]
[{"$nulls":4},"UNIDAD ADMINISTRATIVA ESPECIAL CONTADURIA GENERAL DE LA NACION-CGN",0]
[{"$nulls":4},"UNIDAD ADMINISTRATIVA ESPECIAL DE AERONAUTICA CIVIL-AEROCIVIL",0]
[{"$nulls":4},"UNIDAD ADMINISTRATIVA ESPECIAL DE ALIMENTACIÓN ESCOLAR-",0]
[{"$nulls":4},"UNIDAD ADMINISTRATIVA ESPECIAL DE GESTION PENSIONAL Y CONTRIBUCIONES PARAFISCALES DE LA PROTECCION SOCIAL-UGPP",0]
[{"$nulls":4},"UNIDAD ADMINISTRATIVA ESPECIAL DE LA JUSTICIA PENAL MILITAR Y POLICIAL-",0]
[{"$nulls":4},"UNIDAD ADMINISTRATIVA ESPECIAL DE ORGANIZACIONES SOLIDARIAS-ORGSOLIDARIAS",0]
[{"$nulls":4},"UNIDAD ADMINISTRATIVA ESPECIAL DEL SERVICIO PUBLICO DE EMPLEO-",0]
[{"$nulls":4},"UNIDAD ADMINISTRATIVA ESPECIAL JUNTA  CENTRAL DE CONTADORES-UAE ",0]
[{"$nulls":4},"UNIDAD ADMINISTRATIVA ESPECIAL MIGRACION COLOMBIA-UAEMC",0]
[{"$nulls":4},"UNIDAD ADMINISTRATIVA ESPECIAL PARA LA ATENCION Y REPARACION INTEGRAL A LAS VICTIMAS-",0]
[{"$nulls":4},"UNIDAD DE BUSQUEDA DE PERSONAS DADAS POR DESAPARECIDAS EN EL CONTEXTO Y EN RAZON AL CONFLICTO ARMADO-UBPD",0]
[{"$nulls":4},"UNIDAD DE GESTION GENERAL- MINISTERIO DE DEFENSA NACIONAL-UGG",0]
[{"$nulls":4},"UNIDAD DE INFORMACION Y ANALISIS FINANCIERO-UIAF",0]
[{"$nulls":4},"UNIDAD DE PLANEACION  DE INFRAESTRUCTURA  DE TRANSPORTE-UPIT",0]
[{"$nulls":4},"UNIDAD DE PLANEACION MINERO ENERGETICA-UPME",0]
[{"$nulls":4},"UNIDAD DE PLANIFICACION DE TIERRAS RURALES, ADECUACION DE TIERRAS Y USOS AGROPECUARIOS-UPRA-UPRA",0]
[{"$nulls":4},"UNIDAD DE PROYECCION NORMATIVA Y ESTUDIOS DE REGULACION FINANCIERA-URF",0]
[{"$nulls":4},"UNIDAD DE SERVICIOS PENITENCIARIOS Y CARCELARIOS-USPEC",0]
[{"$nulls":4},"UNIDAD NACIONAL DE PROTECCION-UNP",0]
[{"$nulls":4},"UNIDAD NACIONAL PARA LA GESTION DEL RIESGO DE DESASTRES-NGRD",0]
[{"$nulls":4},"UNIVERSIDAD COLEGIO MAYOR DE CUNDINAMARCA-UCMC",0]
[{"$nulls":4},"UNIVERSIDAD DE CALDAS-UCALDAS",0]
[{"$nulls":4},"UNIVERSIDAD DE CORDOBA-UNICORDOBA",0]
[{"$nulls":4},"UNIVERSIDAD DE LA AMAZONIA-UNIAMAZONIA",0]
[{"$nulls":4},"UNIVERSIDAD DE LOS LLANOS-UNILLANOS",0]
[{"$nulls":4},"UNIVERSIDAD DEL CAUCA-UNICAUCA",0]
[{"$nulls":4},"UNIVERSIDAD DEL PACIFICO-UNIPACIFICO ",0]
[{"$nulls":4},"UNIVERSIDAD MILITAR NUEVA GRANADA-UNIMILITAR",0]
[{"$nulls":4},"UNIVERSIDAD NACIONAL ABIERTA Y A DISTANCIA-UNAD",0]
[{"$nulls":4},"UNIVERSIDAD NACIONAL DE COLOMBIA-UNAL",0]
[{"$nulls":4},"UNIVERSIDAD PEDAGOGICA NACIONAL-UPN",0]
[{"$nulls":4},"UNIVERSIDAD PEDAGOGICA Y TECNOLOGICA DE COLOMBIA-UPTC",0]
[{"$nulls":4},"UNIVERSIDAD POPULAR DEL CESAR-",0]
[{"$nulls":4},"UNIVERSIDAD SURCOLOMBIANA-USCO",0]
[{"$nulls":4},"UNIVERSIDAD TECNOLOGICA DE PEREIRA-UTP",0]
[{"$nulls":4},"UNIVERSIDAD TECNOLOGICA DEL CHOCO DIEGO LUIS CORDOBA-UTCH",0]
[{"$nulls":4},"OTRA ORDEN NACIONAL",1]
[{"$nulls":4},"OTRA ORDEN TERRITORIAL",1]
[]
[{"$nulls":4},"DIRECCION DE IMPUESTOS Y ADUANAS NACIONALES - DIAN -DIRECCION SECCIONAL DE ADUANAS DE BARRANQUILLA-DIAN",0]
[{"$nulls":4},"DIRECCION DE IMPUESTOS Y ADUANAS NACIONALES - DIAN -DIRECCION SECCIONAL DE ADUANAS DE BOGOTA-DIAN",0]
[{"$nulls":4},"DIRECCION DE IMPUESTOS Y ADUANAS NACIONALES - DIAN -DIRECCION SECCIONAL DE ADUANAS DE CALI-DIAN",0]
[{"$nulls":4},"DIRECCION DE IMPUESTOS Y ADUANAS NACIONALES - DIAN -DIRECCION SECCIONAL DE ADUANAS DE CARTAGENA-DIAN",0]
[{"$nulls":4},"DIRECCION DE IMPUESTOS Y ADUANAS NACIONALES - DIAN -DIRECCION SECCIONAL DE ADUANAS DE CUCUTA-DIAN",0]
[{"$nulls":4},"DIRECCION DE IMPUESTOS Y ADUANAS NACIONALES - DIAN -DIRECCION SECCIONAL DE ADUANAS DE MEDELLIN-DIAN",0]
[{"$nulls":4},"DIRECCION DE IMPUESTOS Y ADUANAS NACIONALES - DIAN -DIRECCION SECCIONAL DE IMPUESTOS DE BARRANQUILLA-DIAN",0]
[{"$nulls":4},"DIRECCION DE IMPUESTOS Y ADUANAS NACIONALES - DIAN -DIRECCION SECCIONAL DE IMPUESTOS DE BOGOTA-DIAN",0]
[{"$nulls":4},"DIRECCION DE IMPUESTOS Y ADUANAS NACIONALES - DIAN -DIRECCION SECCIONAL DE IMPUESTOS DE CALI-DIAN",0]
[{"$nulls":4},"DIRECCION DE IMPUESTOS Y ADUANAS NACIONALES - DIAN -DIRECCION SECCIONAL DE IMPUESTOS DE CARTAGENA-DIAN",0]
[{"$nulls":4},"DIRECCION DE IMPUESTOS Y ADUANAS NACIONALES - DIAN -DIRECCION SECCIONAL DE IMPUESTOS DE CUCUTA-DIAN",0]
[{"$nulls":4},"DIRECCION DE IMPUESTOS Y ADUANAS NACIONALES - DIAN -DIRECCION SECCIONAL DE IMPUESTOS DE GRANDES CONTRIBUYENTES-DIAN",0]
[{"$nulls":4},"DIRECCION DE IMPUESTOS Y ADUANAS NACIONALES - DIAN -DIRECCION SECCIONAL DE IMPUESTOS DE MEDELLIN-DIAN",0]
[{"$nulls":4},"DIRECCION DE IMPUESTOS Y ADUANAS NACIONALES - DIAN -DIRECCION SECCIONAL DE IMPUESTOS Y ADUANAS DE ARAUCA-DIAN",0]
[{"$nulls":4},"DIRECCION DE IMPUESTOS Y ADUANAS NACIONALES - DIAN -DIRECCION SECCIONAL DE IMPUESTOS Y ADUANAS DE ARMENIA-DIAN",0]
[{"$nulls":4},"DIRECCION DE IMPUESTOS Y ADUANAS NACIONALES - DIAN -DIRECCION SECCIONAL DE IMPUESTOS Y ADUANAS DE BARRANCABERMEJA-DIAN",0]
[{"$nulls":4},"DIRECCION DE IMPUESTOS Y ADUANAS NACIONALES - DIAN -DIRECCION SECCIONAL DE IMPUESTOS Y ADUANAS DE BUCARAMANGA-DIAN",0]
[{"$nulls":4},"DIRECCION DE IMPUESTOS Y ADUANAS NACIONALES - DIAN -DIRECCION SECCIONAL DE IMPUESTOS Y ADUANAS DE BUENAVENTURA-DIAN",0]
[{"$nulls":4},"DIRECCION DE IMPUESTOS Y ADUANAS NACIONALES - DIAN -DIRECCION SECCIONAL DE IMPUESTOS Y ADUANAS DE FLORENCIA-DIAN",0]
[{"$nulls":4},"DIRECCION DE IMPUESTOS Y ADUANAS NACIONALES - DIAN -DIRECCION SECCIONAL DE IMPUESTOS Y ADUANAS DE GIRARDOT-DIAN",0]
[{"$nulls":4},"DIRECCION DE IMPUESTOS Y ADUANAS NACIONALES - DIAN -DIRECCION SECCIONAL DE IMPUESTOS Y ADUANAS DE IBAGUE-DIAN",0]
[{"$nulls":4},"DIRECCION DE IMPUESTOS Y ADUANAS NACIONALES - DIAN -DIRECCION SECCIONAL DE IMPUESTOS Y ADUANAS DE MANIZALES-DIAN",0]
[{"$nulls":4},"DIRECCION DE IMPUESTOS Y ADUANAS NACIONALES - DIAN -DIRECCION SECCIONAL DE IMPUESTOS Y ADUANAS DE MONTERIA-DIAN",0]
[{"$nulls":4},"DIRECCION DE IMPUESTOS Y ADUANAS NACIONALES - DIAN -DIRECCION SECCIONAL DE IMPUESTOS Y ADUANAS DE NEIVA-DIAN",0]
[{"$nulls":4},"DIRECCION DE IMPUESTOS Y ADUANAS NACIONALES - DIAN -DIRECCION SECCIONAL DE IMPUESTOS Y ADUANAS DE PALMIRA-DIAN",0]
[{"$nulls":4},"DIRECCION DE IMPUESTOS Y ADUANAS NACIONALES - DIAN -DIRECCION SECCIONAL DE IMPUESTOS Y ADUANAS DE PASTO-DIAN",0]
[{"$nulls":4},"DIRECCION DE IMPUESTOS Y ADUANAS NACIONALES - DIAN -DIRECCION SECCIONAL DE IMPUESTOS Y ADUANAS DE PEREIRA-DIAN",0]
[{"$nulls":4},"DIRECCION DE IMPUESTOS Y ADUANAS NACIONALES - DIAN -DIRECCION SECCIONAL DE IMPUESTOS Y ADUANAS DE POPAYAN-DIAN",0]
[{"$nulls":4},"DIRECCION DE IMPUESTOS Y ADUANAS NACIONALES - DIAN -DIRECCION SECCIONAL DE IMPUESTOS Y ADUANAS DE QUIBDO-DIAN",0]
[{"$nulls":4},"DIRECCION DE IMPUESTOS Y ADUANAS NACIONALES - DIAN -DIRECCION SECCIONAL DE IMPUESTOS Y ADUANAS DE RIOHACHA-DIAN",0]
[{"$nulls":4},"DIRECCION DE IMPUESTOS Y ADUANAS NACIONALES - DIAN -DIRECCION SECCIONAL DE IMPUESTOS Y ADUANAS DE SAN ANDRES-DIAN",0]
[{"$nulls":4},"DIRECCION DE IMPUESTOS Y ADUANAS NACIONALES - DIAN -DIRECCION SECCIONAL DE IMPUESTOS Y ADUANAS DE SANTA MARTA-DIAN",0]
[{"$nulls":4},"DIRECCION DE IMPUESTOS Y ADUANAS NACIONALES - DIAN -DIRECCION SECCIONAL DE IMPUESTOS Y ADUANAS DE SINCELEJO-DIAN",0]
[{"$nulls":4},"DIRECCION DE IMPUESTOS Y ADUANAS NACIONALES - DIAN -DIRECCION SECCIONAL DE IMPUESTOS Y ADUANAS DE SOGAMOSO-DIAN",0]
[{"$nulls":4},"DIRECCION DE IMPUESTOS Y ADUANAS NACIONALES - DIAN -DIRECCION SECCIONAL DE IMPUESTOS Y ADUANAS DE TULUA-DIAN",0]
[{"$nulls":4},"DIRECCION DE IMPUESTOS Y ADUANAS NACIONALES - DIAN -DIRECCION SECCIONAL DE IMPUESTOS Y ADUANAS DE TUNJA-DIAN",0]
[{"$nulls":4},"DIRECCION DE IMPUESTOS Y ADUANAS NACIONALES - DIAN -DIRECCION SECCIONAL DE IMPUESTOS Y ADUANAS DE VALLEDUPAR-DIAN",0]
[{"$nulls":4},"DIRECCION DE IMPUESTOS Y ADUANAS NACIONALES - DIAN -DIRECCION SECCIONAL DE IMPUESTOS Y ADUANAS DE VILLAVICENCIO-DIAN",0]
[{"$nulls":4},"DIRECCION DE IMPUESTOS Y ADUANAS NACIONALES - DIAN -DIRECCION SECCIONAL DE IMPUESTOS Y ADUANAS DE YOPAL-DIAN",0]
[{"$nulls":4},"DIRECCION EJECUTIVA DE ADMINISTRACION JUDICIAL - SECCIONAL ARMENIA-DEAJ",0]
[{"$nulls":4},"DIRECCION EJECUTIVA DE ADMINISTRACION JUDICIAL - SECCIONAL BARRANQUILLA-DEAJ",0]
[{"$nulls":4},"DIRECCION EJECUTIVA DE ADMINISTRACION JUDICIAL - SECCIONAL BUCARAMANGA-DEAJ",0]
[{"$nulls":4},"DIRECCION EJECUTIVA DE ADMINISTRACION JUDICIAL - SECCIONAL CALI-DEAJ",0]
[{"$nulls":4},"DIRECCION EJECUTIVA DE ADMINISTRACION JUDICIAL - SECCIONAL CARTAGENA-DEAJ",0]
[{"$nulls":4},"DIRECCION EJECUTIVA DE ADMINISTRACION JUDICIAL - SECCIONAL CUCUTA-DEAJ",0]
[{"$nulls":4},"DIRECCION EJECUTIVA DE ADMINISTRACION JUDICIAL - SECCIONAL FLORENCIA-DEAJ",0]
[{"$nulls":4},"DIRECCION EJECUTIVA DE ADMINISTRACION JUDICIAL - SECCIONAL IBAGUE-DEAJ",0]
[{"$nulls":4},"DIRECCION EJECUTIVA DE ADMINISTRACION JUDICIAL - SECCIONAL MANIZALES-DEAJ",0]
[{"$nulls":4},"DIRECCION EJECUTIVA DE ADMINISTRACION JUDICIAL - SECCIONAL MEDELLIN-DEAJ",0]
[{"$nulls":4},"DIRECCION EJECUTIVA DE ADMINISTRACION JUDICIAL - SECCIONAL MONTERIA-DEAJ",0]
[{"$nulls":4},"DIRECCION EJECUTIVA DE ADMINISTRACION JUDICIAL - SECCIONAL NEIVA-DEAJ",0]
[{"$nulls":4},"DIRECCION EJECUTIVA DE ADMINISTRACION JUDICIAL - SECCIONAL PASTO-DEAJ",0]
[{"$nulls":4},"DIRECCION EJECUTIVA DE ADMINISTRACION JUDICIAL - SECCIONAL PEREIRA-DEAJ",0]
[{"$nulls":4},"DIRECCION EJECUTIVA DE ADMINISTRACION JUDICIAL - SECCIONAL POPAYAN-DEAJ",0]
[{"$nulls":4},"DIRECCION EJECUTIVA DE ADMINISTRACION JUDICIAL - SECCIONAL QUIBDO-DEAJ",0]
[{"$nulls":4},"DIRECCION EJECUTIVA DE ADMINISTRACION JUDICIAL - SECCIONAL RIOHACHA-DEAJ",0]
[{"$nulls":4},"DIRECCION EJECUTIVA DE ADMINISTRACION JUDICIAL - SECCIONAL SANTA MARTA-DEAJ",0]
[{"$nulls":4},"DIRECCION EJECUTIVA DE ADMINISTRACION JUDICIAL - SECCIONAL SINCELEJO-DEAJ",0]
[{"$nulls":4},"DIRECCION EJECUTIVA DE ADMINISTRACION JUDICIAL - SECCIONAL TUNJA-DEAJ",0]
[{"$nulls":4},"DIRECCION EJECUTIVA DE ADMINISTRACION JUDICIAL - SECCIONAL VALLEDUPAR-DEAJ",0]
[{"$nulls":4},"DIRECCION EJECUTIVA DE ADMINISTRACION JUDICIAL - SECCIONAL VILLAVICENCIO-DEAJ",0]
[{"$nulls":4},"POLICIA NACIONAL - UNIDAD DEFENSA JUDICIAL ANTIOQUIA-PONAL",0]
[{"$nulls":4},"POLICIA NACIONAL - UNIDAD DEFENSA JUDICIAL ARAUCA-PONAL",0]
[{"$nulls":4},"POLICIA NACIONAL - UNIDAD DEFENSA JUDICIAL ATLANTICO-PONAL",0]
[{"$nulls":4},"POLICIA NACIONAL - UNIDAD DEFENSA JUDICIAL BOLIVAR-PONAL",0]
[{"$nulls":4},"POLICIA NACIONAL - UNIDAD DEFENSA JUDICIAL BOYACA-PONAL",0]
[{"$nulls":4},"POLICIA NACIONAL - UNIDAD DEFENSA JUDICIAL CALDAS-PONAL",0]
[{"$nulls":4},"POLICIA NACIONAL - UNIDAD DEFENSA JUDICIAL CAQUETA-PONAL",0]
[{"$nulls":4},"POLICIA NACIONAL - UNIDAD DEFENSA JUDICIAL CASANARE-PONAL",0]
[{"$nulls":4},"POLICIA NACIONAL - UNIDAD DEFENSA JUDICIAL CAUCA-PONAL",0]
[{"$nulls":4},"POLICIA NACIONAL - UNIDAD DEFENSA JUDICIAL CESAR-PONAL",0]
[{"$nulls":4},"POLICIA NACIONAL - UNIDAD DEFENSA JUDICIAL CHOCO-PONAL",0]
[{"$nulls":4},"POLICIA NACIONAL - UNIDAD DEFENSA JUDICIAL CORDOBA-PONAL",0]
[{"$nulls":4},"POLICIA NACIONAL - UNIDAD DEFENSA JUDICIAL GUAJIRA-PONAL",0]
[{"$nulls":4},"POLICIA NACIONAL - UNIDAD DEFENSA JUDICIAL HUILA-PONAL",0]
[{"$nulls":4},"POLICIA NACIONAL - UNIDAD DEFENSA JUDICIAL MAGDALENA-PONAL",0]
[{"$nulls":4},"POLICIA NACIONAL - UNIDAD DEFENSA JUDICIAL META-PONAL",0]
[{"$nulls":4},"POLICIA NACIONAL - UNIDAD DEFENSA JUDICIAL NARIÑO-PONAL",0]
[{"$nulls":4},"POLICIA NACIONAL - UNIDAD DEFENSA JUDICIAL NORTE DE SANTANDER-PONAL",0]
[{"$nulls":4},"POLICIA NACIONAL - UNIDAD DEFENSA JUDICIAL PUTUMAYO-PONAL",0]
[{"$nulls":4},"POLICIA NACIONAL - UNIDAD DEFENSA JUDICIAL QUINDIO-PONAL",0]
[{"$nulls":4},"POLICIA NACIONAL - UNIDAD DEFENSA JUDICIAL RISARALDA-PONAL",0]
[{"$nulls":4},"POLICIA NACIONAL - UNIDAD DEFENSA JUDICIAL SANTANDER-PONAL",0]
[{"$nulls":4},"POLICIA NACIONAL - UNIDAD DEFENSA JUDICIAL SUCRE-PONAL",0]
[{"$nulls":4},"POLICIA NACIONAL - UNIDAD DEFENSA JUDICIAL TOLIMA-PONAL",0]
[{"$nulls":4},"POLICIA NACIONAL - UNIDAD DEFENSA JUDICIAL URABA-PONAL",0]
[{"$nulls":4},"POLICIA NACIONAL - UNIDAD DEFENSA JUDICIAL VALLE DEL CAUCA-PONAL",0]

{"sheet":"Entidades","index":11,"n_rows":427,"n_cols":1,"rows_kept":427,"hidden":true}
["Entidad"]
["ADMINISTRADORA COLOMBIANA DE PENSIONES-COLPENSIONES"]
["ADMINISTRADORA DE LOS RECURSOS DEL SISTEMA GENERAL DE SEGURIDAD SOCIAL EN SALUD-ADRES"]
["ADMINISTRADORA DEL MONOPOLIO RENTISTICO DE LOS JUEGOS DE SUERTE Y AZAR-COLJUEGOS"]
["AGENCIA COLOMBIANA PARA LA REINCORPORACION Y NORMALIZACION-ANR"]
["AGENCIA DE DESARROLLO RURAL-ADR"]
["AGENCIA DE RENOVACION DEL TERRITORIO-ART"]
["AGENCIA DEL INSPECTOR GENERAL DE TRIBUTOS, RENTAS Y CONTRIBUCIONES PARAFISCALES-ITRC"]
["AGENCIA LOGISTICA DE LAS FUERZAS MILITARES-ALFM"]
["AGENCIA NACIONAL DE CONTRATACION PUBLICA - COLOMBIA COMPRA EFICIENTE-CCE"]
["AGENCIA NACIONAL DE DEFENSA JURIDICA DEL ESTADO-ANDJE"]
["AGENCIA NACIONAL DE HIDROCARBUROS-ANH"]
["AGENCIA NACIONAL DE INFRAESTRUCTURA-ANI"]
["AGENCIA NACIONAL DE MINERIA-ANM"]
["AGENCIA NACIONAL DE SEGURIDAD VIAL-ANSV"]
["AGENCIA NACIONAL DE TIERRAS-ANT"]
["AGENCIA NACIONAL DEL ESPECTRO-ANE"]
["AGENCIA NACIONAL INMOBILIARIA VIRGILIO BARCO VARGAS-"]
["AGENCIA PRESIDENCIAL DE COOPERACION INTERNACIONAL DE COLOMBIA-APC"]
["ANDJE DDJN-"]
["ARCHIVO GENERAL DE LA NACION-AGN"]
["ARCO GRUPO BANCOLDEX S.A. COMPANIA DE FINANCIAMIENTO-LEASING BANCOLDEX"]
["ARMADA NACIONAL-ARC"]
["ARTESANIAS DE COLOMBIA S.A.-"]
["AUDITORIA GENERAL DE LA REPUBLICA-AGR"]
["AUTORIDAD NACIONAL DE ACUICULTURA Y PESCA-AUNAP"]
["AUTORIDAD NACIONAL DE LICENCIAS AMBIENTALES-ANLA"]
["AUTORIDAD NACIONAL DE TELEVISIÓN EN LIQUIDACIÓN-ANTV"]
["BANCO AGRARIO DE COLOMBIA S.A.-BANAGRARIO"]
["BANCO DE COMERCIO EXTERIOR DE COLOMBIA S.A.-BANCOLDEX"]
["BANCO DE LA REPUBLICA-BANREP"]
["BIOENERGY S.A.S.-"]
["BIOENERGY ZONA FRANCA S.A.S.-"]
["CAJA DE COMPENSACION FAMILIAR CAMPESINA- COMCAJA-COMCAJA"]
["CAJA DE RETIRO DE LAS FUERZAS MILITARES-CREMIL"]
["CAJA DE SUELDOS DE RETIRO DE LA POLICIA NACIONAL-CASUR"]
["CAJA PROMOTORA DE VIVIENDA MILITAR Y DE POLICIA-CAJAHONOR"]
["CAMARA DE REPRESENTANTES-CAMARA "]
["CANAL REGIONAL DE TELEVISION DEL CARIBE LTDA-TELECARIBE"]
["CANAL REGIONAL DE TELEVISION TEVEANDINA LTDA-TV ANDINA"]
["CENIT TRANSPORTE Y LOGISTICA DE HIDROCARBUROS-CENIT"]
["CENTRAL DE ABASTOS DE CUCUTA S.A.- EN LIQUIDACION--CENABASTOS S.A."]
["CENTRAL DE INVERSIONES S.A.-CISA"]
["CENTRALES ELECTRICAS DE NARINO S.A. E.S.P.-CEDENAR"]
["CENTRALES ELECTRICAS DEL CAUCA S.A. E.S.P.-CEDELCA"]
["CENTRO DE DIAGNÓSTICO AUTOMOTOR DE CALDAS-"]
["CENTRO DERMATOLOGICO FEDERICO LLERAS ACOSTA EMPRESA SOCIAL DEL ESTADO-"]
["CENTRO NACIONAL DE MEMORIA HISTORICA-"]
["CLUB MILITAR DE OFICIALES-CLUB MILITAR"]
["COMANDO GENERAL DE LAS FUERZAS MILITARES-CGFM"]
["COMISION DE REGULACION DE AGUA POTABLE Y SANEAMIENTO BASICO-CRA"]
["COMISION DE REGULACION DE COMUNICACIONES-CRC"]
["COMISION DE REGULACION DE ENERGIA Y GAS-CREG"]
["COMISION NACIONAL DEL SERVICIO CIVIL-CNSC"]
["COMISION PARA EL ESCLARECIMIENTO DE LA VERDAD, LA CONVIVENCIA Y LA NO REPETICION-CEV"]
["COMISIONADO PARA LA POLICIA- MINISTERIO DE DEFENSA NACIONAL-"]
["COMPANIA DE EXPERTOS EN MERCADO S.A - XM S.A -XM S.A."]
["COMPUTADORES PARA EDUCAR-CPE"]
["CONCESION COSTERA CARTAGENA BARRANQUILLA S.A.S-"]
["CONSEJO NACIONAL ELECTORAL-CNE"]
["CONSEJO PROFESIONAL NACIONAL DE ARQUITECTURA Y SUS PROFESIONALES AUXILIARES-CPNAA"]
["CONSEJO PROFESIONAL NACIONAL DE INGENIERIA-COPNIA"]
["CONSORCIO FONDO COLOMBIA EN PAZ 2019-PA-FCP"]
["CONTRALORIA GENERAL DE LA REPUBLICA-CGR"]
["CORPORACION  AUTONOMA REGIONAL DEL ALTO MAGDALENA-CAM"]
["CORPORACION AUTONOMA REGIONAL DE BOYACA-CORPOBOYACA"]
["CORPORACION AUTONOMA REGIONAL DE CALDAS-CORPOCALDAS"]
["CORPORACION AUTONOMA REGIONAL DE CHIVOR -CORPOCHIVOR"]
["CORPORACION AUTONOMA REGIONAL DE CUNDINAMARCA-CAR"]
["CORPORACION AUTONOMA REGIONAL DE LA FRONTERA NORORIENTAL-CORPONOR"]
["CORPORACION AUTONOMA REGIONAL DE LA GUAJIRA-CORPOGUAJIRA"]
["CORPORACION AUTONOMA REGIONAL DE LA ORINOQUIA-CORPORINOQUIA"]
["CORPORACION AUTONOMA REGIONAL DE LAS CUENCAS DE LOS RIOS NEGRO Y NARE-CORNARE"]
["CORPORACION AUTONOMA REGIONAL DE LOS VALLES DEL SINU Y DEL SAN JORGE-CVS"]
["CORPORACION AUTONOMA REGIONAL DE NARINO-CORPONARINO"]
["CORPORACION AUTONOMA REGIONAL DE RISARALDA-CARDER"]
["CORPORACION AUTONOMA REGIONAL DE SANTANDER-CAS"]
["CORPORACION AUTONOMA REGIONAL DE SUCRE-CARSUCRE"]
["CORPORACION AUTONOMA REGIONAL DEL ATLANTICO-CRA"]
["CORPORACION AUTONOMA REGIONAL DEL CANAL DEL DIQUE-CARDIQUE"]
["CORPORACION AUTONOMA REGIONAL DEL CAUCA-CRC"]
["CORPORACION AUTONOMA REGIONAL DEL CENTRO DE ANTIOQUIA-CORANTIOQUIA"]
["CORPORACION AUTONOMA REGIONAL DEL CESAR-CORPOCESAR"]
["CORPORACION AUTONOMA REGIONAL DEL GUAVIO-CORPOGUAVIO"]
["CORPORACION AUTONOMA REGIONAL DEL MAGDALENA-CORPAMAG"]
["CORPORACION AUTONOMA REGIONAL DEL QUINDIO-CRQ"]
["CORPORACION AUTONOMA REGIONAL DEL RIO GRANDE DEL MAGDALENA-CORMAGDALENA"]
["CORPORACION AUTONOMA REGIONAL DEL SUR DE BOLIVAR-CARCSB"]
["CORPORACION AUTONOMA REGIONAL DEL TOLIMA-CORTOLIMA"]
["CORPORACION AUTONOMA REGIONAL DEL VALLE DEL CAUCA-CVC"]
["CORPORACION AUTONOMA REGIONAL PARA EL DESARROLLO SOSTENIBLE DEL CHOCO-CODECHOCO"]
["CORPORACION AUTONOMA REGIONAL PARA LA DEFENSA DE LA MESETA DE BUCARAMANGA-CDMB"]
["CORPORACION COLOMBIANA DE INVESTIGACION AGROPECUARIA-CORPOICA"]
["CORPORACION DE CIENCIA Y TECNOLOGIA PARA EL DESARROLLO DE LA INDUSTRIA NAVAL, MARITIMA Y FLUVIAL-COTECMAR"]
["CORPORACION DE LA INDUSTRIA AERONAUTICA COLOMBIANA S.A.-CIAC"]
["CORPORACION NACIONAL PARA LA RECONSTRUCCION DE LA CUENCA DEL RIO PAEZ Y ZONAS ALEDANAS-NASA KIWE"]
["CORPORACION PARA EL DESARROLLO SOSTENIBLE DE LA MOJANA Y EL SAN JORGE-CORPOMOJANA"]
["CORPORACION PARA EL DESARROLLO SOSTENIBLE DEL ARCHIPIELAGO DE SAN ANDRES PROVIDENCIA Y SANTA CATALINA-CORALINA"]
["CORPORACION PARA EL DESARROLLO SOSTENIBLE DEL AREA DE MANEJO ESPECIAL LA MACARENA-CORMACARENA"]
["CORPORACION PARA EL DESARROLLO SOSTENIBLE DEL NORTE Y ORIENTE DE LA AMAZONIA-CDA"]
["CORPORACION PARA EL DESARROLLO SOSTENIBLE DEL SUR DE LA AMAZONIA-CORPOAMAZONIA"]
["CORPORACION PARA EL DESARROLLO SOSTENIBLE DEL URABA-CORPOURABA"]
["DEFENSA CIVIL COLOMBIANA-DC"]
["DEFENSORIA DEL PUEBLO-"]
["DEPARTAMENTO ADMINISTRATIVO DE LA FUNCION PUBLICA-DAFP"]
["DEPARTAMENTO ADMINISTRATIVO DE LA PRESIDENCIA DE LA REPUBLICA-DAPRE"]
["DEPARTAMENTO ADMINISTRATIVO DIRECCION NACIONAL DE INTELIGENCIA-DNI"]
["DEPARTAMENTO ADMINISTRATIVO NACIONAL DE ESTADISTICA-DANE"]
["DEPARTAMENTO ADMINISTRATIVO PARA LA PROSPERIDAD SOCIAL-DPS"]
["DEPARTAMENTO NACIONAL DE PLANEACION-DNP"]
["DIRECCION DE IMPUESTOS Y ADUANAS NACIONALES - DIAN -DIRECCION SECCIONAL DE ADUANAS DE BARRANQUILLA-DIAN"]
["DIRECCION DE IMPUESTOS Y ADUANAS NACIONALES - DIAN -DIRECCION SECCIONAL DE ADUANAS DE BOGOTA-DIAN"]
["DIRECCION DE IMPUESTOS Y ADUANAS NACIONALES - DIAN -DIRECCION SECCIONAL DE ADUANAS DE CALI-DIAN"]
["DIRECCION DE IMPUESTOS Y ADUANAS NACIONALES - DIAN -DIRECCION SECCIONAL DE ADUANAS DE CARTAGENA-DIAN"]
["DIRECCION DE IMPUESTOS Y ADUANAS NACIONALES - DIAN -DIRECCION SECCIONAL DE ADUANAS DE CUCUTA-DIAN"]
["DIRECCION DE IMPUESTOS Y ADUANAS NACIONALES - DIAN -DIRECCION SECCIONAL DE ADUANAS DE MEDELLIN-DIAN"]
["DIRECCION DE IMPUESTOS Y ADUANAS NACIONALES - DIAN -DIRECCION SECCIONAL DE IMPUESTOS DE BARRANQUILLA-DIAN"]
["DIRECCION DE IMPUESTOS Y ADUANAS NACIONALES - DIAN -DIRECCION SECCIONAL DE IMPUESTOS DE BOGOTA-DIAN"]
["DIRECCION DE IMPUESTOS Y ADUANAS NACIONALES - DIAN -DIRECCION SECCIONAL DE IMPUESTOS DE CALI-DIAN"]
["DIRECCION DE IMPUESTOS Y ADUANAS NACIONALES - DIAN -DIRECCION SECCIONAL DE IMPUESTOS DE CARTAGENA-DIAN"]
["DIRECCION DE IMPUESTOS Y ADUANAS NACIONALES - DIAN -DIRECCION SECCIONAL DE IMPUESTOS DE CUCUTA-DIAN"]
["DIRECCION DE IMPUESTOS Y ADUANAS NACIONALES - DIAN -DIRECCION SECCIONAL DE IMPUESTOS DE GRANDES CONTRIBUYENTES-DIAN"]
["DIRECCION DE IMPUESTOS Y ADUANAS NACIONALES - DIAN -DIRECCION SECCIONAL DE IMPUESTOS DE MEDELLIN-DIAN"]
["DIRECCION DE IMPUESTOS Y ADUANAS NACIONALES - DIAN -DIRECCION SECCIONAL DE IMPUESTOS Y ADUANAS DE ARAUCA-DIAN"]
["DIRECCION DE IMPUESTOS Y ADUANAS NACIONALES - DIAN -DIRECCION SECCIONAL DE IMPUESTOS Y ADUANAS DE ARMENIA-DIAN"]
["DIRECCION DE IMPUESTOS Y ADUANAS NACIONALES - DIAN -DIRECCION SECCIONAL DE IMPUESTOS Y ADUANAS DE BARRANCABERMEJA-DIAN"]
["DIRECCION DE IMPUESTOS Y ADUANAS NACIONALES - DIAN -DIRECCION SECCIONAL DE IMPUESTOS Y ADUANAS DE BUCARAMANGA-DIAN"]
["DIRECCION DE IMPUESTOS Y ADUANAS NACIONALES - DIAN -DIRECCION SECCIONAL DE IMPUESTOS Y ADUANAS DE BUENAVENTURA-DIAN"]
["DIRECCION DE IMPUESTOS Y ADUANAS NACIONALES - DIAN -DIRECCION SECCIONAL DE IMPUESTOS Y ADUANAS DE FLORENCIA-DIAN"]
["DIRECCION DE IMPUESTOS Y ADUANAS NACIONALES - DIAN -DIRECCION SECCIONAL DE IMPUESTOS Y ADUANAS DE GIRARDOT-DIAN"]
["DIRECCION DE IMPUESTOS Y ADUANAS NACIONALES - DIAN -DIRECCION SECCIONAL DE IMPUESTOS Y ADUANAS DE IBAGUE-DIAN"]
["DIRECCION DE IMPUESTOS Y ADUANAS NACIONALES - DIAN -DIRECCION SECCIONAL DE IMPUESTOS Y ADUANAS DE MANIZALES-DIAN"]
["DIRECCION DE IMPUESTOS Y ADUANAS NACIONALES - DIAN -DIRECCION SECCIONAL DE IMPUESTOS Y ADUANAS DE MONTERIA-DIAN"]
["DIRECCION DE IMPUESTOS Y ADUANAS NACIONALES - DIAN -DIRECCION SECCIONAL DE IMPUESTOS Y ADUANAS DE NEIVA-DIAN"]
["DIRECCION DE IMPUESTOS Y ADUANAS NACIONALES - DIAN -DIRECCION SECCIONAL DE IMPUESTOS Y ADUANAS DE PALMIRA-DIAN"]
["DIRECCION DE IMPUESTOS Y ADUANAS NACIONALES - DIAN -DIRECCION SECCIONAL DE IMPUESTOS Y ADUANAS DE PASTO-DIAN"]
["DIRECCION DE IMPUESTOS Y ADUANAS NACIONALES - DIAN -DIRECCION SECCIONAL DE IMPUESTOS Y ADUANAS DE PEREIRA-DIAN"]
["DIRECCION DE IMPUESTOS Y ADUANAS NACIONALES - DIAN -DIRECCION SECCIONAL DE IMPUESTOS Y ADUANAS DE POPAYAN-DIAN"]
["DIRECCION DE IMPUESTOS Y ADUANAS NACIONALES - DIAN -DIRECCION SECCIONAL DE IMPUESTOS Y ADUANAS DE QUIBDO-DIAN"]
["DIRECCION DE IMPUESTOS Y ADUANAS NACIONALES - DIAN -DIRECCION SECCIONAL DE IMPUESTOS Y ADUANAS DE RIOHACHA-DIAN"]
["DIRECCION DE IMPUESTOS Y ADUANAS NACIONALES - DIAN -DIRECCION SECCIONAL DE IMPUESTOS Y ADUANAS DE SAN ANDRES-DIAN"]
["DIRECCION DE IMPUESTOS Y ADUANAS NACIONALES - DIAN -DIRECCION SECCIONAL DE IMPUESTOS Y ADUANAS DE SANTA MARTA-DIAN"]
["DIRECCION DE IMPUESTOS Y ADUANAS NACIONALES - DIAN -DIRECCION SECCIONAL DE IMPUESTOS Y ADUANAS DE SINCELEJO-DIAN"]
["DIRECCION DE IMPUESTOS Y ADUANAS NACIONALES - DIAN -DIRECCION SECCIONAL DE IMPUESTOS Y ADUANAS DE SOGAMOSO-DIAN"]
["DIRECCION DE IMPUESTOS Y ADUANAS NACIONALES - DIAN -DIRECCION SECCIONAL DE IMPUESTOS Y ADUANAS DE TULUA-DIAN"]
["DIRECCION DE IMPUESTOS Y ADUANAS NACIONALES - DIAN -DIRECCION SECCIONAL DE IMPUESTOS Y ADUANAS DE TUNJA-DIAN"]
["DIRECCION DE IMPUESTOS Y ADUANAS NACIONALES - DIAN -DIRECCION SECCIONAL DE IMPUESTOS Y ADUANAS DE VALLEDUPAR-DIAN"]
["DIRECCION DE IMPUESTOS Y ADUANAS NACIONALES - DIAN -DIRECCION SECCIONAL DE IMPUESTOS Y ADUANAS DE VILLAVICENCIO-DIAN"]
["DIRECCION DE IMPUESTOS Y ADUANAS NACIONALES - DIAN -DIRECCION SECCIONAL DE IMPUESTOS Y ADUANAS DE YOPAL-DIAN"]
["DIRECCION DE IMPUESTOS Y ADUANAS NACIONALES - DIAN -NIVEL CENTRAL-DIAN"]
["DIRECCION DE SANIDAD DE LA POLICIA NACIONAL-DISAN"]
["DIRECCION EJECUTIVA DE ADMINISTRACION JUDICIAL - NIVEL CENTRAL-DEAJ"]
["DIRECCION EJECUTIVA DE ADMINISTRACION JUDICIAL - SECCIONAL ARMENIA-DEAJ"]
["DIRECCION EJECUTIVA DE ADMINISTRACION JUDICIAL - SECCIONAL BARRANQUILLA-DEAJ"]
["DIRECCION EJECUTIVA DE ADMINISTRACION JUDICIAL - SECCIONAL BUCARAMANGA-DEAJ"]
["DIRECCION EJECUTIVA DE ADMINISTRACION JUDICIAL - SECCIONAL CALI-DEAJ"]
["DIRECCION EJECUTIVA DE ADMINISTRACION JUDICIAL - SECCIONAL CARTAGENA-DEAJ"]
["DIRECCION EJECUTIVA DE ADMINISTRACION JUDICIAL - SECCIONAL CUCUTA-DEAJ"]
["DIRECCION EJECUTIVA DE ADMINISTRACION JUDICIAL - SECCIONAL FLORENCIA-DEAJ"]
["DIRECCION EJECUTIVA DE ADMINISTRACION JUDICIAL - SECCIONAL IBAGUE-DEAJ"]
["DIRECCION EJECUTIVA DE ADMINISTRACION JUDICIAL - SECCIONAL MANIZALES-DEAJ"]
["DIRECCION EJECUTIVA DE ADMINISTRACION JUDICIAL - SECCIONAL MEDELLIN-DEAJ"]
["DIRECCION EJECUTIVA DE ADMINISTRACION JUDICIAL - SECCIONAL MONTERIA-DEAJ"]
["DIRECCION EJECUTIVA DE ADMINISTRACION JUDICIAL - SECCIONAL NEIVA-DEAJ"]
["DIRECCION EJECUTIVA DE ADMINISTRACION JUDICIAL - SECCIONAL PASTO-DEAJ"]
["DIRECCION EJECUTIVA DE ADMINISTRACION JUDICIAL - SECCIONAL PEREIRA-DEAJ"]
["DIRECCION EJECUTIVA DE ADMINISTRACION JUDICIAL - SECCIONAL POPAYAN-DEAJ"]
["DIRECCION EJECUTIVA DE ADMINISTRACION JUDICIAL - SECCIONAL QUIBDO-DEAJ"]
["DIRECCION EJECUTIVA DE ADMINISTRACION JUDICIAL - SECCIONAL RIOHACHA-DEAJ"]
["DIRECCION EJECUTIVA DE ADMINISTRACION JUDICIAL - SECCIONAL SANTA MARTA-DEAJ"]
["DIRECCION EJECUTIVA DE ADMINISTRACION JUDICIAL - SECCIONAL SINCELEJO-DEAJ"]
["DIRECCION EJECUTIVA DE ADMINISTRACION JUDICIAL - SECCIONAL TUNJA-DEAJ"]
["DIRECCION EJECUTIVA DE ADMINISTRACION JUDICIAL - SECCIONAL VALLEDUPAR-DEAJ"]
["DIRECCION EJECUTIVA DE ADMINISTRACION JUDICIAL - SECCIONAL VILLAVICENCIO-DEAJ"]
["DIRECCION GENERAL DE LA POLICIA NACIONAL-PONAL"]
["DIRECCION GENERAL DE SANIDAD MILITAR -DGSM"]
["DIRECCION GENERAL MARITIMA -DIMAR"]
["DIRECCION NACIONAL DE BOMBEROS DE COLOMBIA-DNBC"]
["DIRECCION NACIONAL DE DERECHO DE AUTOR-DNDA"]
["ECOPETROL S.A. - NIVEL CENTRAL-ECOPETROL"]
["EJERCITO NACIONAL -EJC"]
["ELECTRIFICADORA DEL CAQUETA S.A. E.S.P.-ELECTROCAQUETA"]
["ELECTRIFICADORA DEL HUILA S.A. E.S.P.-ELECTROHUILA"]
["ELECTRIFICADORA DEL META S.A. E.S.P.-EMSA"]
["ELECTRIFICADORA DEL TOLIMA SA  EMPRESA DE SERVICIOS PUBLICOS ELECTROLIMA SA ESP EN LIQUIDACION-ELECTROLIMA"]
["EMPRESA COLOMBIANA DE PETROLEOS - ECOPETROL - REGIONAL ORINOQUIA-ECOPETROL"]
["EMPRESA COLOMBIANA DE PRODUCTOS VETERINARIOS S.A.-VECOL"]
["EMPRESA DE ENERGIA DEL AMAZONAS S.A. E.S.P.-"]
["EMPRESA DE ENERGIA DEL ARCHIPIELAGO DE SAN ANDRES, PROVIDENCIA Y SANTA CATALINA S.A. E.S.P.-EADAS SA ESP"]
["EMPRESA DE TELECOMUNICACIONES DE BUCARAMANGA S.A E.S.P -TELEBUCARAMANGA"]
["EMPRESA DISTRIBUIDORA DEL PACIFICO S.A. E.S.P.-DISPAC "]
["EMPRESA NACIONAL PROMOTORA DEL DESARROLLO TERRITORIAL-ENTERRITORIO"]
["EMPRESA PUBLICA DE ALCANTARILLADO DE SANTANDER S.A. E.S.P.-EMPAS"]
["EMPRESA URRA S.A. E.S.P.-URRÁ"]
["ESCUELA SUPERIOR DE ADMINISTRACION PUBLICA-ESAP"]
["ESCUELA TECNOLOGICA INSTITUTO TECNICO CENTRAL-ITC"]
["ESENTTIA MASTERBATCH LTDA-ESENTTIA MB"]
["ESENTTIA S.A-"]
["FIDEICOMISO ADMINISTRACION DE CONTINGENCIAS CONCESIONES SALINAS-"]
["FIDEICOMISO ALCALIS RECONOCIMIENTO DE PENSIONES-"]
["FIDEICOMISO CREDITOS LITIGIOSOS ALCALIS-"]
["FIDEICOMISO CREDITOS LITIGIOSOS IFI-"]
["FIDEICOMISO DE PROMOCION DE EXPORTACIONES PROCOLOMBIA-PROCOLOMBIA"]
["FIDEICOMISO EMSOLMEC-"]
["FIDEICOMISO FONDO NACIONAL DE SALUD-FONDOPPL"]
["FIDEICOMISO IFI PENSIONES-"]
["FIDUCIARIA COLOMBIANA DE COMERCIO EXTERIOR S.A.-FIDUCOLDEX"]
["FIDUCIARIA LA PREVISORA S.A.-FIDUPREVISORA"]
["FINANCIERA DE DESARROLLO NACIONAL-FDN"]
["FINANCIERA DE DESARROLLO TERRITORIAL S.A.-FINDETER"]
["FISCALIA GENERAL DE LA NACION-FISCALIA "]
["FONDO ADAPTACION-"]
["FONDO DE BIENESTAR SOCIAL DE LA CONTALORIA GENERAL DE LA REPUBLICA-FBSCGR"]
["FONDO DE DESARROLLO DE LA EDUCACION SUPERIOR-FODESEP"]
["FONDO DE FINANCIAMIENTO DE LA INFRAESTRUCTURA EDUCATIVA-FFIE"]
["FONDO DE GARANTIAS DE ENTIDADES COOPERATIVAS-FOGACOOP"]
["FONDO DE GARANTIAS DE INSTITUCIONES FINANCIERAS-FOGAFIN"]
["FONDO DE PASIVO SOCIAL DE FERROCARRILES NACIONALES DE COLOMBIA-FPS"]
["FONDO DE PRESTACIONES SOCIALES DEL MAGISTERIO-FOMAG"]
["FONDO DE PREVISION SOCIAL DEL CONGRESO DE LA REPUBLICA-FONPRECON"]
["FONDO DE TECNOLOGIAS DE LA INFORMACION Y LAS COMUNICACIONES-FONTIC"]
["FONDO NACIONAL DE AHORRO-FNA"]
["FONDO NACIONAL DE ESTUPEFACIENTES-FNE"]
["FONDO NACIONAL DE GARANTIAS S.A.-FNG"]
["FONDO NACIONAL DE VIVIENDA-FONVIVIENDA"]
["FONDO NACIONAL DEL PASIVO PENSIONAL Y PRESTACIONAL DE LA ELECTRIFICADORA DEL CARIBE S.A. E.S.P –FONECA-FONECA"]
["FONDO PARA EL FINANCIAMIENTO DEL SECTOR AGROPECUARIO-FINAGRO"]
["FONDO ROTATORIO DE LA POLICIA NACIONAL-FORPO"]
["FONDO ROTATORIO DE LA REGISTRADURIA NACIONAL DEL ESTADO CIVIL-"]
["FONDO ROTATORIO DEL DEPARTAMENTO ADMINISTRATIVO NACIONAL DE ESTADISTICA-FONDANE"]
["FONDO ROTATORIO DEL MINISTERIO DE RELACIONES EXTERIORES-"]
["FONDO SOCIAL DE VIVIENDA DE LA REGISTRADURIA NACIONAL DEL ESTADO CIVIL-"]
["FUERZA AEREA COLOMBIANA-FAC"]
["GENERADORA Y COMERCIALIZADORA DE ENERGIA DEL CARIBE S.A. E.S.P.-GECELCA "]
["GESTION ENERGETICA S.A. E.S.P.-GENSA "]
["HOSPITAL MILITAR CENTRAL-"]
["IMPRENTA NACIONAL DE COLOMBIA-"]
["INDUSTRIA MILITAR-INDUMIL"]
["INFRAESTRUCTURA ASSET MANAGEMENT COLOMBIA S.A.S.-INFRAMCO"]
["INSTITUTO AMAZONICO DE INVESTIGACIONES CIENTIFICAS-SINCHI"]
["INSTITUTO CARO Y CUERVO-"]
["INSTITUTO COLOMBIANO AGROPECUARIO-ICA"]
["INSTITUTO COLOMBIANO DE ANTROPOLOGIA E HISTORIA-ICANH"]
["INSTITUTO COLOMBIANO DE BIENESTAR FAMILIAR - NIVEL CENTRAL-ICBF"]
["INSTITUTO COLOMBIANO DE CREDITO EDUCATIVO Y ESTUDIOS TECNICOS EN EL EXTERIOR MARIANO OSPINA PEREZ-ICETEX"]
["INSTITUTO COLOMBIANO DE DESARROLLO RURAL - INCODER-INCODER"]
["INSTITUTO COLOMBIANO PARA LA EVALUACION DE LA EDUCACION-ICFES"]
["INSTITUTO DE CASAS FISCALES DEL EJERCITO-ICFE"]
["INSTITUTO DE EVALUACION TECNOLOGICA EN SALUD-IETS"]
["INSTITUTO DE HIDROLOGIA, METEOROLOGIA Y ESTUDIOS AMBIENTALES-IDEAM"]
["INSTITUTO DE INVESTIGACION DE RECURSOS BIOLOGICOS ALEXANDER VON HUMBOLDT-HUMBOLDT"]
["INSTITUTO DE INVESTIGACIONES AMBIENTALES DEL PACIFICO JOHN VON NEUMANN-IIAP"]
["INSTITUTO DE INVESTIGACIONES MARINAS Y COSTERAS JOSE BENITO VIVES DE ANDREIS-INVEMAR"]
["INSTITUTO DE PLANIFICACION Y PROMOCION DE SOLUCIONES ENERGETICAS PARA LAS ZONAS NO INTERCONECTADAS-IPSE"]
["INSTITUTO GEOGRAFICO AGUSTIN CODAZZI-IGAC"]
["INSTITUTO NACIONAL DE CANCEROLOGIA - EMPRESA SOCIAL DEL ESTADO-"]
["INSTITUTO NACIONAL DE FORMACION TECNICA PROFESIONAL DE SAN JUAN DEL CESAR-INFOTEP "]
["INSTITUTO NACIONAL DE FORMACION TECNICA PROFESIONAL DEL DEPARTAMENTO DE SAN ANDRES, PROVIDENCIA Y SANTA CATALINA-INFOTEP SAN ANDRES"]
["INSTITUTO NACIONAL DE MEDICINA LEGAL Y CIENCIAS FORENSES-"]
["INSTITUTO NACIONAL DE METROLOGIA-INM"]
["INSTITUTO NACIONAL DE SALUD-INS"]
["INSTITUTO NACIONAL DE VIAS-INVIAS"]
["INSTITUTO NACIONAL DE VIGILANCIA DE MEDICAMENTOS Y ALIMENTOS-INVIMA"]
["INSTITUTO NACIONAL PARA CIEGOS-INCI"]
["INSTITUTO NACIONAL PARA SORDOS-INSOR"]
["INSTITUTO NACIONAL PENITENCIARIO Y CARCELARIO-INPEC"]
["INSTITUTO TECNICO NACIONAL DE COMERCIO SIMON RODRIGUEZ-INTENALCO"]
["INSTITUTO TOLIMENSE DE FORMACION TECNICA PROFESIONAL-ITFIP"]
["INTERCOLOMBIA S.A. E.S.P-INTERCOLOLOMBIA S.A"]
["INTERCONEXION ELECTRICA S.A. E.S.P.-ISA"]
["INTERNEXA S.A-"]
["JURISDICCION ESPECIAL PARA LA PAZ-JEP"]
["JUSTICIA PENAL MILITAR -JPM"]
["LA PREVISORA COMPAÑIA DE SEGUROS - RECOBROS Y SALVAMENTOS-PREVISORA"]
["LA PREVISORA S.A. COMPANIA DE SEGUROS-PREVISORA"]
["MINISTERIO DE AGRICULTURA Y DESARROLLO RURAL-MADR"]
["MINISTERIO DE AMBIENTE Y DESARROLLO SOSTENIBLE-MINAMBIENTE"]
["MINISTERIO DE CIENCIA  TECNOLOGÍA E INNOVACIÓN-MINCIENCIAS"]
["MINISTERIO DE COMERCIO, INDUSTRIA Y TURISMO-MINCIT"]
["MINISTERIO DE CULTURA-MINCULTURA"]
["MINISTERIO DE DEFENSA NACIONAL-MINDEFENSA"]
["MINISTERIO DE EDUCACION NACIONAL-MEN"]
["MINISTERIO DE EDUCACION NACIONAL - COMPARTIDO-MEN"]
["MINISTERIO DE HACIENDA Y CREDITO PUBLICO-MINHACIENDA"]
["MINISTERIO DE JUSTICIA Y DEL DERECHO-MINJUSTICIA"]
["MINISTERIO DE MINAS Y ENERGIA-MINMINAS"]
["MINISTERIO DE RELACIONES EXTERIORES-"]
["MINISTERIO DE SALUD Y PROTECCION SOCIAL-MINSALUD"]
["MINISTERIO DE TECNOLOGIAS DE LA INFORMACION Y LAS COMUNICACIONES-MINTIC"]
["MINISTERIO DE TRANSPORTE-MINTRANSPORTE"]
["MINISTERIO DE VIVIENDA, CIUDAD Y TERRITORIO-MINVIVIENDA"]
["MINISTERIO DEL DEPORTE-"]
["MINISTERIO DEL INTERIOR-MININTERIOR"]
["MINISTERIO DEL TRABAJO-MINTRABAJO"]
["OLEODUCTO BICENTENARIO DE COLOMBIA S.A.S.-"]
["OLEODUCTO CENTRAL S.A.S-OCENSA "]
["OLEODUCTO DE COLOMBIA S.A.-ODC"]
["OPERACIONES TECNOLOGICAS Y COMERCIALES S.A.S.-OPTECOM "]
["ORGANISMO NACIONAL DE ACREDITACION-ONAC"]
["PAP CAJA AGRARIA PENSIONES-"]
["PAR - PATRIMONIO AUTONOMO DE REMANENTES DE TELECOMUNICACIONES-"]
["PAR BANCO CAFETERO EN LIQUIDACION-"]
["PAR BANCO DEL ESTADO EN LIQUIDACION-"]
["PAR BCH EN LIQUIDACION-"]
["PAR BCH EN LIQUIDACION - FIDUAGRARIA-"]
["PAR CAJA AGRARIA EN LIQUIDACION C.A.L-"]
["PAR CAPRECOM LIQUIDADO-"]
["PAR E.S.E ANTONIO NARINO-"]
["PAR INCODER EN LIQUIDACION-"]
["PAR INURBE EN LIQUIDACION-"]
["PARQUES NACIONALES NATURALES DE COLOMBIA-"]
["PATRIMONIO AUTONOMO BANCO CAFETERO-"]
["PATRIMONIO AUTONOMO BANCO CENTRAL HIPOTECARIO EN LIQUIDACION -PROCESOS--"]
["PATRIMONIO AUTONOMO CAJANAL E.I.C.E. EN LIQUIDACION-"]
["PATRIMONIO AUTONOMO CAJANAL EICE EN LIQUIDACION CNPS CUOTAS PARTES PENSIONALES-"]
["PATRIMONIO AUTÓNOMO COLOMBIA PRODUCTIVA-"]
["PATRIMONIO AUTONOMO DE REMANENTES COMISION NACIONAL DE TELEVISION -PARCNTV"]
["PATRIMONIO AUTONOMO DE REMANENTES DEL EXTINTO DEPARTAMENTO ADMINISTRATIVO DAS Y SU FONDO ROTATORIO-PAR DAS"]
["PATRIMONIO AUTONOMO DE REMANENTES DEL ISS EN LIQUIDACION-PAR ISS"]
["PATRIMONIO AUTONOMO DE REMANENTES E.S.E. FRANCISCO DE PAULA SANTANDER EN LIQUIDACION-"]
["PATRIMONIO AUTONOMO DE REMANENTES PAR ANTV LIQUIDADA-PAR ANTV"]
["PATRIMONIO AUTONOMO FONDO NACIONAL DE SALUD DE LAS PERSONAS PRIVADAS DE LA LIBERTAD-"]
["PATRIMONIO AUTÓNOMO FONDO NACIONAL DE TURISMO FONTUR-FONTUR"]
["PATRIMONIO AUTONOMO IFI PENSIONES-"]
["PATRIMONIO AUTONOMO INNPULSA-"]
["PATRIMONIO AUTONOMO PAP E.S.E JOSE PRUDENCIO PADILLA EN LIQUIDACION-"]
["PATRIMONIO AUTONOMO PAP E.S.E. POLICARPA SALAVARRIETA EN LIQUIDACION-"]
["PATRIMONIO AUTONOMO PAP EMPRESA DE ENERGIA ELECTRICA DE MAGANGUE S.A. E.S.P. EN LIQUIDACION-"]
["PATRIMONIO AUTONOMO PAP ETESA EN LIQUIDACION PAR-"]
["PATRIMONIO AUTONOMO PAR CAJANAL S.A. E.P.S EN LIQUIDACION-"]
["PATRIMONIO RECEPTOR DE LOS ACTIVOS DE TELECOM Y LAS TELEASOCIADAS-PARAPAT"]
["POLICIA NACIONAL - UNIDAD DEFENSA JUDICIAL ANTIOQUIA-PONAL"]
["POLICIA NACIONAL - UNIDAD DEFENSA JUDICIAL ARAUCA-PONAL"]
["POLICIA NACIONAL - UNIDAD DEFENSA JUDICIAL ATLANTICO-PONAL"]
["POLICIA NACIONAL - UNIDAD DEFENSA JUDICIAL BOLIVAR-PONAL"]
["POLICIA NACIONAL - UNIDAD DEFENSA JUDICIAL BOYACA-PONAL"]
["POLICIA NACIONAL - UNIDAD DEFENSA JUDICIAL CALDAS-PONAL"]
["POLICIA NACIONAL - UNIDAD DEFENSA JUDICIAL CAQUETA-PONAL"]
["POLICIA NACIONAL - UNIDAD DEFENSA JUDICIAL CASANARE-PONAL"]
["POLICIA NACIONAL - UNIDAD DEFENSA JUDICIAL CAUCA-PONAL"]
["POLICIA NACIONAL - UNIDAD DEFENSA JUDICIAL CESAR-PONAL"]
["POLICIA NACIONAL - UNIDAD DEFENSA JUDICIAL CHOCO-PONAL"]
["POLICIA NACIONAL - UNIDAD DEFENSA JUDICIAL CORDOBA-PONAL"]
["POLICIA NACIONAL - UNIDAD DEFENSA JUDICIAL GUAJIRA-PONAL"]
["POLICIA NACIONAL - UNIDAD DEFENSA JUDICIAL HUILA-PONAL"]
["POLICIA NACIONAL - UNIDAD DEFENSA JUDICIAL MAGDALENA-PONAL"]
["POLICIA NACIONAL - UNIDAD DEFENSA JUDICIAL META-PONAL"]
["POLICIA NACIONAL - UNIDAD DEFENSA JUDICIAL NARIÑO-PONAL"]
["POLICIA NACIONAL - UNIDAD DEFENSA JUDICIAL NORTE DE SANTANDER-PONAL"]
["POLICIA NACIONAL - UNIDAD DEFENSA JUDICIAL PUTUMAYO-PONAL"]
["POLICIA NACIONAL - UNIDAD DEFENSA JUDICIAL QUINDIO-PONAL"]
["POLICIA NACIONAL - UNIDAD DEFENSA JUDICIAL RISARALDA-PONAL"]
["POLICIA NACIONAL - UNIDAD DEFENSA JUDICIAL SANTANDER-PONAL"]
["POLICIA NACIONAL - UNIDAD DEFENSA JUDICIAL SUCRE-PONAL"]
["POLICIA NACIONAL - UNIDAD DEFENSA JUDICIAL TOLIMA-PONAL"]
["POLICIA NACIONAL - UNIDAD DEFENSA JUDICIAL URABA-PONAL"]
["POLICIA NACIONAL - UNIDAD DEFENSA JUDICIAL VALLE DEL CAUCA-PONAL"]
["POSITIVA COMPAÑIA DE SEGUROS S.A.-"]
["PROCURADURIA GENERAL DE LA NACION-PGN"]
["PROGRAMA DE VIVIENDA  RURAL-VISR"]
["REFINERIA DE CARTAGENA S.A.S-REFICAR"]
["REGISTRADURIA NACIONAL DEL ESTADO CIVIL-"]
["SANATORIO DE AGUA DE DIOS, EMPRESA SOCIAL DEL ESTADO-SANATORIO DE AGUA DE DIOS E.S.E."]
["SANATORIO DE CONTRATACION, EMPRESA SOCIAL DEL ESTADO-"]
["SENADO DE LA REPUBLICA-SENADO"]
["SERVICIO AEREO A TERRITORIOS NACIONALES S.A.-SATENA S.A."]
["SERVICIO GEOLOGICO COLOMBIANO-SGC"]
["SERVICIO NACIONAL DE APRENDIZAJE-SENA"]
["SERVICIOS POSTALES NACIONALES S.A.-4-72"]
["SISTEMAS INTELIGENTES EN RED S.A.S.-"]
["SOCIEDAD DE ACTIVOS ESPECIALES S.A.S.-SAE"]
["SOCIEDAD DE TELEVISION DE CALDAS, RISARALDA Y QUINDIO LTDA -TELECAFE"]
["SOCIEDAD FIDUCIARIA DE DESARROLLO AGROPECUARIO S.A.-FIDUAGRARIA"]
["SOCIEDAD HOTELERA TEQUENDAMA S.A. - CROWNE PLAZA-SHT"]
["SOCIEDAD RADIO TELEVISION NACIONAL DE COLOMBIA-RTVC"]
["SUPERINTENDENCIA DE INDUSTRIA Y COMERCIO-SUPERINDUSTRIA"]
["SUPERINTENDENCIA DE LA ECONOMIA SOLIDARIA-SUPERSOLIDARIA"]
["SUPERINTENDENCIA DE NOTARIADO Y REGISTRO-SNR"]
["SUPERINTENDENCIA DE SERVICIOS PUBLICOS DOMICILIARIOS-SUPESERVICIOS"]
["SUPERINTENDENCIA DE SOCIEDADES-SUPERSOCIEDADES"]
["SUPERINTENDENCIA DE TRANSPORTE-SUPERTRANSPORTE"]
["SUPERINTENDENCIA DE VIGILANCIA Y SEGURIDAD PRIVADA-SUPERVIGILANCIA"]
["SUPERINTENDENCIA DEL SUBSIDIO FAMILIAR-SSF"]
["SUPERINTENDENCIA FINANCIERA DE COLOMBIA-SUPERFINANCIERA"]
["SUPERINTENDENCIA NACIONAL DE SALUD-SUPERSALUD"]
["TRANSELCA S.A. E.S.P.-TRANSELCA"]
["TRIBUNAL MEDICO LABORAL -"]
["U.A.E DE GESTION DE RESTITUCION DE TIERRAS DESPOJADAS-"]
["UNIDAD ADMINISTRATIVA ESPECIAL CONTADURIA GENERAL DE LA NACION-CGN"]
["UNIDAD ADMINISTRATIVA ESPECIAL DE AERONAUTICA CIVIL-AEROCIVIL"]
["UNIDAD ADMINISTRATIVA ESPECIAL DE ALIMENTACIÓN ESCOLAR-"]
["UNIDAD ADMINISTRATIVA ESPECIAL DE GESTION PENSIONAL Y CONTRIBUCIONES PARAFISCALES DE LA PROTECCION SOCIAL-UGPP"]
["UNIDAD ADMINISTRATIVA ESPECIAL DE LA JUSTICIA PENAL MILITAR Y POLICIAL-"]
["UNIDAD ADMINISTRATIVA ESPECIAL DE ORGANIZACIONES SOLIDARIAS-ORGSOLIDARIAS"]
["UNIDAD ADMINISTRATIVA ESPECIAL DEL SERVICIO PUBLICO DE EMPLEO-"]
["UNIDAD ADMINISTRATIVA ESPECIAL JUNTA  CENTRAL DE CONTADORES-UAE "]
["UNIDAD ADMINISTRATIVA ESPECIAL MIGRACION COLOMBIA-UAEMC"]
["UNIDAD ADMINISTRATIVA ESPECIAL PARA LA ATENCION Y REPARACION INTEGRAL A LAS VICTIMAS-"]
["UNIDAD DE BUSQUEDA DE PERSONAS DADAS POR DESAPARECIDAS EN EL CONTEXTO Y EN RAZON AL CONFLICTO ARMADO-UBPD"]
["UNIDAD DE GESTION GENERAL- MINISTERIO DE DEFENSA NACIONAL-UGG"]
["UNIDAD DE INFORMACION Y ANALISIS FINANCIERO-UIAF"]
["UNIDAD DE PLANEACION  DE INFRAESTRUCTURA  DE TRANSPORTE-UPIT"]
["UNIDAD DE PLANEACION MINERO ENERGETICA-UPME"]
["UNIDAD DE PLANIFICACION DE TIERRAS RURALES, ADECUACION DE TIERRAS Y USOS AGROPECUARIOS-UPRA-UPRA"]
["UNIDAD DE PROYECCION NORMATIVA Y ESTUDIOS DE REGULACION FINANCIERA-URF"]
["UNIDAD DE SERVICIOS PENITENCIARIOS Y CARCELARIOS-USPEC"]
["UNIDAD NACIONAL DE PROTECCION-UNP"]
["UNIDAD NACIONAL PARA LA GESTION DEL RIESGO DE DESASTRES-NGRD"]
["UNIVERSIDAD COLEGIO MAYOR DE CUNDINAMARCA-UCMC"]
["UNIVERSIDAD DE CALDAS-UCALDAS"]
["UNIVERSIDAD DE CORDOBA-UNICORDOBA"]
["UNIVERSIDAD DE LA AMAZONIA-UNIAMAZONIA"]
["UNIVERSIDAD DE LOS LLANOS-UNILLANOS"]
["UNIVERSIDAD DEL CAUCA-UNICAUCA"]
["UNIVERSIDAD DEL PACIFICO-UNIPACIFICO "]
["UNIVERSIDAD MILITAR NUEVA GRANADA-UNIMILITAR"]
["UNIVERSIDAD NACIONAL ABIERTA Y A DISTANCIA-UNAD"]
["UNIVERSIDAD NACIONAL DE COLOMBIA-UNAL"]
["UNIVERSIDAD PEDAGOGICA NACIONAL-UPN"]
["UNIVERSIDAD PEDAGOGICA Y TECNOLOGICA DE COLOMBIA-UPTC"]
["UNIVERSIDAD POPULAR DEL CESAR-"]
["UNIVERSIDAD SURCOLOMBIANA-USCO"]
["UNIVERSIDAD TECNOLOGICA DE PEREIRA-UTP"]
["UNIVERSIDAD TECNOLOGICA DEL CHOCO DIEGO LUIS CORDOBA-UTCH"]
["SIN IDENTIFICAR"]
["OTRA"]
["OTRA ORDEN TERRITORIAL"]